Publisher Label,Publisher URI,"Supplier","Net Amount £","Organisational Unit","Merchant Category Code","Purpose","Payment Date"
"Wolverhampton City Council","http://opendatacommunities.org/id/metropolitan-district-council/wolverhampton","SCREWFIX DIR LTD",8.75,"Cemeteries","5211","Materials","31/08/2020"
"Wolverhampton City Council","http://opendatacommunities.org/id/metropolitan-district-council/wolverhampton","SumUp   Party Printz",3.5,"LAC Transitions Team","5999","-","31/08/2020"
"Wolverhampton City Council","http://opendatacommunities.org/id/metropolitan-district-council/wolverhampton","SumUp   Bargain Beerz",4.56,"LAC Transitions Team","5411","-","31/08/2020"
"Wolverhampton City Council","http://opendatacommunities.org/id/metropolitan-district-council/wolverhampton","B&M 663 - MANDER",15.92,"Bradley Resource Centre","5399","Cleaning Supplies and Materials","31/08/2020"
"Wolverhampton City Council","http://opendatacommunities.org/id/metropolitan-district-council/wolverhampton","FACEBK J6ZGJVEAR2",500,"Communications & Marketing - General","7311","R4317","31/08/2020"
"Wolverhampton City Council","http://opendatacommunities.org/id/metropolitan-district-council/wolverhampton","HUGHES",190,"LAC Transitions Accommodation","5732","Accommodation Costs","31/08/2020"
"Wolverhampton City Council","http://opendatacommunities.org/id/metropolitan-district-council/wolverhampton","PREMIER",5.75,"Bradley Resource Centre","5499","Provisions (Not for resale)","31/08/2020"
"Wolverhampton City Council","http://opendatacommunities.org/id/metropolitan-district-council/wolverhampton","WM MORRISONS STORE",73.92,"Bradley Resource Centre","5411","Provisions (Not for resale)","31/08/2020"
"Wolverhampton City Council","http://opendatacommunities.org/id/metropolitan-district-council/wolverhampton","SIMPLY CONVENIENCE",9.19,"Bradley Resource Centre","5411","Provisions (Not for resale)","31/08/2020"
"Wolverhampton City Council","http://opendatacommunities.org/id/metropolitan-district-council/wolverhampton","PO ROUGH HAY 0792",8.33,"Key to Inspiration","6011","Provisions (Not for resale)","31/08/2020"
"Wolverhampton City Council","http://opendatacommunities.org/id/metropolitan-district-council/wolverhampton","LIDL GB BILSTON",4.39,"LAC Transitions Accommodation","5411","Accommodation Costs","31/08/2020"
"Wolverhampton City Council","http://opendatacommunities.org/id/metropolitan-district-council/wolverhampton","PREMIER INN",62.49,"Emergency Duty Team","3811","Accommodation Costs","31/08/2020"
"Wolverhampton City Council","http://opendatacommunities.org/id/metropolitan-district-council/wolverhampton","AMZNMKTPLACE AMAZON.CO",24.97,"Aldersley Leisure Village","5999","Equipment - Purchase","31/08/2020"
"Wolverhampton City Council","http://opendatacommunities.org/id/metropolitan-district-council/wolverhampton","THE R W S",260,"Bert Williams Leisure Centre","8220","Equipment - Purchase","31/08/2020"
"Wolverhampton City Council","http://opendatacommunities.org/id/metropolitan-district-council/wolverhampton","ROYAL CARPETS",91.67,"LAC Transitions Accommodation","5713","Client Allowances","31/08/2020"
"Wolverhampton City Council","http://opendatacommunities.org/id/metropolitan-district-council/wolverhampton","HOME BARGAINS WOLVERHA",3.99,"Independant Living Services","5251","-","31/08/2020"
"Wolverhampton City Council","http://opendatacommunities.org/id/metropolitan-district-council/wolverhampton","POST OFFICE COUNTER",9.12,"Condition Surveys","9402","Comms - Postage","31/08/2020"
"Wolverhampton City Council","http://opendatacommunities.org/id/metropolitan-district-council/wolverhampton","HOME BARGAINS WOLVERHA",3.79,"Blakenhall Commty & Healthy Living Ctr","5251","Equipment - Purchase","31/08/2020"
"Wolverhampton City Council","http://opendatacommunities.org/id/metropolitan-district-council/wolverhampton","PAYPAL  CHATTYCAFES",10,"Blakenhall Commty & Healthy Living Ctr","8398","Services - Fees and Charges","31/08/2020"
"Wolverhampton City Council","http://opendatacommunities.org/id/metropolitan-district-council/wolverhampton","H.C.SLINGSBY PLC",99,"Business Support Services","5085","Equipment - Purchase","31/08/2020"
"Wolverhampton City Council","http://opendatacommunities.org/id/metropolitan-district-council/wolverhampton","ROOKERY Sainsburys Ba",200,"Duke Street Bungalows","6011","Provisions (Not for resale)","31/08/2020"
"Wolverhampton City Council","http://opendatacommunities.org/id/metropolitan-district-council/wolverhampton","CARVER/WOLVERHAMPTON/L",68.35,"Culwell Street Depot","5211","-","31/08/2020"
"Wolverhampton City Council","http://opendatacommunities.org/id/metropolitan-district-council/wolverhampton","Amazon.co.uk 4P3P10YH5",20.27,"Business Support Unit","5969","Stationery","31/08/2020"
"Wolverhampton City Council","http://opendatacommunities.org/id/metropolitan-district-council/wolverhampton","SCREWFIX DIRECT",8.32,"Cemeteries","5211","Materials","28/08/2020"
"Wolverhampton City Council","http://opendatacommunities.org/id/metropolitan-district-council/wolverhampton","THE RANGE",66.65,"Cemeteries","5311","Materials","28/08/2020"
"Wolverhampton City Council","http://opendatacommunities.org/id/metropolitan-district-council/wolverhampton","NoteMachine ATM",80,"LAC Transitions Team","6011","-","28/08/2020"
"Wolverhampton City Council","http://opendatacommunities.org/id/metropolitan-district-council/wolverhampton","RAYNOR STORES LTD",17.32,"LAC Transitions Team","5251","-","28/08/2020"
"Wolverhampton City Council","http://opendatacommunities.org/id/metropolitan-district-council/wolverhampton","POST OFFICE COUNTER",50.44,"LAC Transitions Team","9402","-","28/08/2020"
"Wolverhampton City Council","http://opendatacommunities.org/id/metropolitan-district-council/wolverhampton","AMZNMKTPLACE AMAZON.CO",84.4,"MI Friendly Cities","5999","Equipment - Purchase","28/08/2020"
"Wolverhampton City Council","http://opendatacommunities.org/id/metropolitan-district-council/wolverhampton","AMZNMKTPLACE AMAZON.CO",84.4,"MI Friendly Cities","5999","Equipment - Purchase","28/08/2020"
"Wolverhampton City Council","http://opendatacommunities.org/id/metropolitan-district-council/wolverhampton","HMCOURTS-SERVICE.G",75,"Mental Health Assessment & Care Mgmt","9222","Services - Fees and Charges","28/08/2020"
"Wolverhampton City Council","http://opendatacommunities.org/id/metropolitan-district-council/wolverhampton","HM PASSPORT OFFICE",75.5,"Lac Transitions","9399","Services - Supplies & Services to users","28/08/2020"
"Wolverhampton City Council","http://opendatacommunities.org/id/metropolitan-district-council/wolverhampton","SSE",23.74,"LAC Transitions Team","4900","Accommodation Costs","28/08/2020"
"Wolverhampton City Council","http://opendatacommunities.org/id/metropolitan-district-council/wolverhampton","WM MORRISONS STORE",86.52,"Bradley Resource Centre","5411","Provisions (Not for resale)","28/08/2020"
"Wolverhampton City Council","http://opendatacommunities.org/id/metropolitan-district-council/wolverhampton","Amazon.co.uk U452A5VO5",11.48,"Adult Services - North","5969","Computing - Consumables","28/08/2020"
"Wolverhampton City Council","http://opendatacommunities.org/id/metropolitan-district-council/wolverhampton","ASDA SUPERSTORE",185.27,"Key to Inspiration","5411","Provisions (Not for resale)","28/08/2020"
"Wolverhampton City Council","http://opendatacommunities.org/id/metropolitan-district-council/wolverhampton","ASDA SUPERSTORE",197.01,"Key to Inspiration","5411","Provisions (Not for resale)","28/08/2020"
"Wolverhampton City Council","http://opendatacommunities.org/id/metropolitan-district-council/wolverhampton","A2BGo Carz",3.7,"Youth Offending Team","4121","Client Transport","28/08/2020"
"Wolverhampton City Council","http://opendatacommunities.org/id/metropolitan-district-council/wolverhampton","A2BGo Carz",3.7,"Youth Offending Team","4121","Client Transport","28/08/2020"
"Wolverhampton City Council","http://opendatacommunities.org/id/metropolitan-district-council/wolverhampton","CardtronicsUK",20,"LAC Transitions Team","6011","Client Allowances","28/08/2020"
"Wolverhampton City Council","http://opendatacommunities.org/id/metropolitan-district-council/wolverhampton","DC PAYMENTS",500,"Looked After Team 2","6011","Financial Assistance In Exceptional Circ","28/08/2020"
"Wolverhampton City Council","http://opendatacommunities.org/id/metropolitan-district-council/wolverhampton","PREMIER INN",193.96,"Looked After Team 2","3811","Accommodation Costs","28/08/2020"
"Wolverhampton City Council","http://opendatacommunities.org/id/metropolitan-district-council/wolverhampton","DC PAYMENTS",350,"Looked After Team 2","6011","Financial Assistance In Exceptional Circ","28/08/2020"
"Wolverhampton City Council","http://opendatacommunities.org/id/metropolitan-district-council/wolverhampton","BARCLAYS",200,"LAC Transitions Accommodation","6011","Client Allowances","28/08/2020"
"Wolverhampton City Council","http://opendatacommunities.org/id/metropolitan-district-council/wolverhampton","CURRYS ONLINE",249.15,"Bridges & Subways","5732","Equipment - Purchase","28/08/2020"
"Wolverhampton City Council","http://opendatacommunities.org/id/metropolitan-district-council/wolverhampton","AMZNMKTPLACE AMAZON.CO",20.42,"Travelwise","5999","Equipment - Purchase","28/08/2020"
"Wolverhampton City Council","http://opendatacommunities.org/id/metropolitan-district-council/wolverhampton","AMZNMKTPLACE AMAZON.CO",7.12,"Travelwise","5999","Equipment - Purchase","28/08/2020"
"Wolverhampton City Council","http://opendatacommunities.org/id/metropolitan-district-council/wolverhampton","MCDONALDS",5.15,"LAC Transitions Team","5814","-","27/08/2020"
"Wolverhampton City Council","http://opendatacommunities.org/id/metropolitan-district-council/wolverhampton","CARD FACTORY",6.14,"LAC Transitions Team","5947","-","27/08/2020"
"Wolverhampton City Council","http://opendatacommunities.org/id/metropolitan-district-council/wolverhampton","HM PASSPORT OFFICE",85,"LAC Transitions Team","9399","-","27/08/2020"
"Wolverhampton City Council","http://opendatacommunities.org/id/metropolitan-district-council/wolverhampton","Amazon.co.uk YP18X0F35",24.3,"MI Friendly Cities","5969","Equipment - Purchase","27/08/2020"
"Wolverhampton City Council","http://opendatacommunities.org/id/metropolitan-district-council/wolverhampton","RAGLAN STREET ST MARK",120,"Bradley Resource Centre","6011","Materials","27/08/2020"
"Wolverhampton City Council","http://opendatacommunities.org/id/metropolitan-district-council/wolverhampton","GEN REGISTER OFFICE",14,"Lac Transitions","9399","Services - Supplies & Services to users","27/08/2020"
"Wolverhampton City Council","http://opendatacommunities.org/id/metropolitan-district-council/wolverhampton","GOOGLE  ADS9680351324",500,"Headstart - Young People Engagement","7311","R4317","27/08/2020"
"Wolverhampton City Council","http://opendatacommunities.org/id/metropolitan-district-council/wolverhampton","HOME BARGAINS WOLVERHA",0.74,"LAC Transitions Team","5251","Accommodation Costs","27/08/2020"
"Wolverhampton City Council","http://opendatacommunities.org/id/metropolitan-district-council/wolverhampton","HOME BARGAINS WOLVERHA",57.01,"LAC Transitions Team","5251","Accommodation Costs","27/08/2020"
"Wolverhampton City Council","http://opendatacommunities.org/id/metropolitan-district-council/wolverhampton","DULUX DECORATOR CENTRE",33.23,"Jai Patel","5198","Materials","27/08/2020"
"Wolverhampton City Council","http://opendatacommunities.org/id/metropolitan-district-council/wolverhampton","CANNON FREIGHT LTD",50,"LAC Transitions Team","4225","Client Allowances","27/08/2020"
"Wolverhampton City Council","http://opendatacommunities.org/id/metropolitan-district-council/wolverhampton","WWW.BRISTOWSUTOR.C",0,"Revenues","9399","VAT","27/08/2020"
"Wolverhampton City Council","http://opendatacommunities.org/id/metropolitan-district-council/wolverhampton","Trainline",21.72,"Fostering Team","4112","Public Transport","27/08/2020"
"Wolverhampton City Council","http://opendatacommunities.org/id/metropolitan-district-council/wolverhampton","ARGOS LTD",83.32,"Bert Williams Leisure Centre","5310","Equipment - Purchase","27/08/2020"
"Wolverhampton City Council","http://opendatacommunities.org/id/metropolitan-district-council/wolverhampton","Amazon.co.uk UL56N4WH5",10,"Corporate Parenting","5969","Direct Work With Children","27/08/2020"
"Wolverhampton City Council","http://opendatacommunities.org/id/metropolitan-district-council/wolverhampton","Amazon.co.uk J58D97V65",10,"Looked After Team 2","5969","Direct Work With Children","27/08/2020"
"Wolverhampton City Council","http://opendatacommunities.org/id/metropolitan-district-council/wolverhampton","A2BGo Carz",3.7,"Power2 Team","4121","Client Transport","27/08/2020"
"Wolverhampton City Council","http://opendatacommunities.org/id/metropolitan-district-council/wolverhampton","A2BGo Carz",3.9,"Power2 Team","4121","Client Transport","27/08/2020"
"Wolverhampton City Council","http://opendatacommunities.org/id/metropolitan-district-council/wolverhampton","EXPRESS MATTING SE",147.99,"Business Support Services","5713","Equipment - Purchase","27/08/2020"
"Wolverhampton City Council","http://opendatacommunities.org/id/metropolitan-district-council/wolverhampton","WWW.SHROPSHIRE-C.GOV.",75,"Workforce Development","8220","Training Expenses","27/08/2020"
"Wolverhampton City Council","http://opendatacommunities.org/id/metropolitan-district-council/wolverhampton","AMZNMKTPLACE AMAZON.CO",14.47,"Ernest Bold Court","5999","Equipment - Purchase","27/08/2020"
"Wolverhampton City Council","http://opendatacommunities.org/id/metropolitan-district-council/wolverhampton","DVLA VEHICLE TAX",302.5,"Fleet Management","9311","R3004","27/08/2020"
"Wolverhampton City Council","http://opendatacommunities.org/id/metropolitan-district-council/wolverhampton","DVLA VEHICLE TAX",302.5,"Fleet Management","9311","R3004","27/08/2020"
"Wolverhampton City Council","http://opendatacommunities.org/id/metropolitan-district-council/wolverhampton","DVLA VEHICLE TAX",267.5,"Fleet Management","9311","R3004","27/08/2020"
"Wolverhampton City Council","http://opendatacommunities.org/id/metropolitan-district-council/wolverhampton","DVLA VEHICLE TAX",302.5,"Fleet Management","9311","R3004","27/08/2020"
"Wolverhampton City Council","http://opendatacommunities.org/id/metropolitan-district-council/wolverhampton","DVLA VEHICLE TAX",302.5,"Fleet Management","9311","R3004","27/08/2020"
"Wolverhampton City Council","http://opendatacommunities.org/id/metropolitan-district-council/wolverhampton","DVLA VEHICLE TAX",302.5,"Fleet Management","9311","R3004","27/08/2020"
"Wolverhampton City Council","http://opendatacommunities.org/id/metropolitan-district-council/wolverhampton","DVLA VEHICLE TAX",267.5,"Fleet Management","9311","R3004","27/08/2020"
"Wolverhampton City Council","http://opendatacommunities.org/id/metropolitan-district-council/wolverhampton","DVLA VEHICLE TAX",267.5,"Fleet Management","9311","R3004","27/08/2020"
"Wolverhampton City Council","http://opendatacommunities.org/id/metropolitan-district-council/wolverhampton","DVLA VEHICLE TAX",302.5,"Fleet Management","9311","R3004","27/08/2020"
"Wolverhampton City Council","http://opendatacommunities.org/id/metropolitan-district-council/wolverhampton","DVLA VEHICLE TAX",167.5,"Fleet Management","9311","R3004","27/08/2020"
"Wolverhampton City Council","http://opendatacommunities.org/id/metropolitan-district-council/wolverhampton","DVLA VEHICLE TAX",267.5,"Fleet Management","9311","R3004","27/08/2020"
"Wolverhampton City Council","http://opendatacommunities.org/id/metropolitan-district-council/wolverhampton","DVLA VEHICLE TAX",267.5,"Fleet Management","9311","R3004","27/08/2020"
"Wolverhampton City Council","http://opendatacommunities.org/id/metropolitan-district-council/wolverhampton","DVLA VEHICLE TAX",267.5,"Fleet Management","9311","R3004","27/08/2020"
"Wolverhampton City Council","http://opendatacommunities.org/id/metropolitan-district-council/wolverhampton","DVLA VEHICLE TAX",272.5,"Fleet Management","9311","R3004","27/08/2020"
"Wolverhampton City Council","http://opendatacommunities.org/id/metropolitan-district-council/wolverhampton","DVLA VEHICLE TAX",302.5,"Fleet Management","9311","R3004","27/08/2020"
"Wolverhampton City Council","http://opendatacommunities.org/id/metropolitan-district-council/wolverhampton","DVLA VEHICLE TAX",302.5,"Fleet Management","9311","R3004","27/08/2020"
"Wolverhampton City Council","http://opendatacommunities.org/id/metropolitan-district-council/wolverhampton","DVLA VEHICLE TAX",302.5,"Fleet Management","9311","R3004","27/08/2020"
"Wolverhampton City Council","http://opendatacommunities.org/id/metropolitan-district-council/wolverhampton","DVLA VEHICLE TAX",302.5,"Fleet Management","9311","R3004","27/08/2020"
"Wolverhampton City Council","http://opendatacommunities.org/id/metropolitan-district-council/wolverhampton","DVLA VEHICLE TAX",267.5,"Fleet Management","9311","R3004","27/08/2020"
"Wolverhampton City Council","http://opendatacommunities.org/id/metropolitan-district-council/wolverhampton","DVLA VEHICLE TAX",267.5,"Fleet Management","9311","R3004","27/08/2020"
"Wolverhampton City Council","http://opendatacommunities.org/id/metropolitan-district-council/wolverhampton","DVLA VEHICLE TAX",302.5,"Fleet Management","9311","R3004","27/08/2020"
"Wolverhampton City Council","http://opendatacommunities.org/id/metropolitan-district-council/wolverhampton","DVLA VEHICLE TAX",302.5,"Fleet Management","9311","R3004","27/08/2020"
"Wolverhampton City Council","http://opendatacommunities.org/id/metropolitan-district-council/wolverhampton","DVLA VEHICLE TAX",267.5,"Fleet Management","9311","R3004","27/08/2020"
"Wolverhampton City Council","http://opendatacommunities.org/id/metropolitan-district-council/wolverhampton","DVLA VEHICLE TAX",267.5,"Fleet Management","9311","R3004","27/08/2020"
"Wolverhampton City Council","http://opendatacommunities.org/id/metropolitan-district-council/wolverhampton","DVLA VEHICLE TAX",302.5,"Fleet Management","9311","R3004","27/08/2020"
"Wolverhampton City Council","http://opendatacommunities.org/id/metropolitan-district-council/wolverhampton","DVLA VEHICLE TAX",302.5,"Fleet Management","9311","R3004","27/08/2020"
"Wolverhampton City Council","http://opendatacommunities.org/id/metropolitan-district-council/wolverhampton","DVLA VEHICLE TAX",267.5,"Fleet Management","9311","R3004","27/08/2020"
"Wolverhampton City Council","http://opendatacommunities.org/id/metropolitan-district-council/wolverhampton","DVLA VEHICLE TAX",302.5,"Fleet Management","9311","R3004","27/08/2020"
"Wolverhampton City Council","http://opendatacommunities.org/id/metropolitan-district-council/wolverhampton","DVLA VEHICLE TAX",302.5,"Fleet Management","9311","R3004","27/08/2020"
"Wolverhampton City Council","http://opendatacommunities.org/id/metropolitan-district-council/wolverhampton","DVLA VEHICLE TAX",267.5,"Fleet Management","9311","R3004","27/08/2020"
"Wolverhampton City Council","http://opendatacommunities.org/id/metropolitan-district-council/wolverhampton","DVLA VEHICLE TAX",267.5,"Fleet Management","9311","R3004","27/08/2020"
"Wolverhampton City Council","http://opendatacommunities.org/id/metropolitan-district-council/wolverhampton","DVLA VEHICLE TAX",267.5,"Fleet Management","9311","R3004","27/08/2020"
"Wolverhampton City Council","http://opendatacommunities.org/id/metropolitan-district-council/wolverhampton","DVLA VEHICLE TAX",302.5,"Fleet Management","9311","R3004","27/08/2020"
"Wolverhampton City Council","http://opendatacommunities.org/id/metropolitan-district-council/wolverhampton","DVLA VEHICLE TAX",267.5,"Fleet Management","9311","R3004","27/08/2020"
"Wolverhampton City Council","http://opendatacommunities.org/id/metropolitan-district-council/wolverhampton","DVLA VEHICLE TAX",267.5,"Fleet Management","9311","R3004","27/08/2020"
"Wolverhampton City Council","http://opendatacommunities.org/id/metropolitan-district-council/wolverhampton","DVLA VEHICLE TAX",167.5,"Fleet Management","9311","R3004","27/08/2020"
"Wolverhampton City Council","http://opendatacommunities.org/id/metropolitan-district-council/wolverhampton","DVLA VEHICLE TAX",302.5,"Fleet Management","9311","R3004","27/08/2020"
"Wolverhampton City Council","http://opendatacommunities.org/id/metropolitan-district-council/wolverhampton","DVLA VEHICLE TAX",267.5,"Fleet Management","9311","R3004","27/08/2020"
"Wolverhampton City Council","http://opendatacommunities.org/id/metropolitan-district-council/wolverhampton","DVLA VEHICLE TAX",267.5,"Fleet Management","9311","R3004","27/08/2020"
"Wolverhampton City Council","http://opendatacommunities.org/id/metropolitan-district-council/wolverhampton","DVLA VEHICLE TAX",267.5,"Fleet Management","9311","R3004","27/08/2020"
"Wolverhampton City Council","http://opendatacommunities.org/id/metropolitan-district-council/wolverhampton","DVLA VEHICLE TAX",267.5,"Fleet Management","9311","R3004","27/08/2020"
"Wolverhampton City Council","http://opendatacommunities.org/id/metropolitan-district-council/wolverhampton","DVLA VEHICLE TAX",302.5,"Fleet Management","9311","R3004","27/08/2020"
"Wolverhampton City Council","http://opendatacommunities.org/id/metropolitan-district-council/wolverhampton","DVLA VEHICLE TAX",267.5,"Fleet Management","9311","R3004","27/08/2020"
"Wolverhampton City Council","http://opendatacommunities.org/id/metropolitan-district-council/wolverhampton","DVLA VEHICLE TAX",267.5,"Fleet Management","9311","R3004","27/08/2020"
"Wolverhampton City Council","http://opendatacommunities.org/id/metropolitan-district-council/wolverhampton","DVLA VEHICLE TAX",267.5,"Fleet Management","9311","R3004","27/08/2020"
"Wolverhampton City Council","http://opendatacommunities.org/id/metropolitan-district-council/wolverhampton","DVLA VEHICLE TAX",267.5,"Fleet Management","9311","R3004","27/08/2020"
"Wolverhampton City Council","http://opendatacommunities.org/id/metropolitan-district-council/wolverhampton","DVLA VEHICLE TAX",302.5,"Fleet Management","9311","R3004","27/08/2020"
"Wolverhampton City Council","http://opendatacommunities.org/id/metropolitan-district-council/wolverhampton","DVLA VEHICLE TAX",267.5,"Fleet Management","9311","R3004","27/08/2020"
"Wolverhampton City Council","http://opendatacommunities.org/id/metropolitan-district-council/wolverhampton","SCREWFIX DIRECT",53.3,"Cemeteries","5211","Materials","26/08/2020"
"Wolverhampton City Council","http://opendatacommunities.org/id/metropolitan-district-council/wolverhampton","CO-OP GROUP 070362",12.5,"Children & Family Contact Services","5411","Cleaning Supplies and Materials","26/08/2020"
"Wolverhampton City Council","http://opendatacommunities.org/id/metropolitan-district-council/wolverhampton","SCREWFIX DIRECT",1293.32,"MI Friendly Cities","5211","Equipment - Purchase","26/08/2020"
"Wolverhampton City Council","http://opendatacommunities.org/id/metropolitan-district-council/wolverhampton","POWERTOOL WORLD",355.83,"MI Friendly Cities","5072","Equipment - Purchase","26/08/2020"
"Wolverhampton City Council","http://opendatacommunities.org/id/metropolitan-district-council/wolverhampton","Amazon.co.uk WW50V7XR5",666.62,"MI Friendly Cities","5969","Equipment - Purchase","26/08/2020"
"Wolverhampton City Council","http://opendatacommunities.org/id/metropolitan-district-council/wolverhampton","AMZNMKTPLACE AMAZON.CO",104.13,"MI Friendly Cities","5999","Equipment - Purchase","26/08/2020"
"Wolverhampton City Council","http://opendatacommunities.org/id/metropolitan-district-council/wolverhampton","GOOGLE  ADS5477893156",168.18,"Regional Adoption Agency","5968","R4317","26/08/2020"
"Wolverhampton City Council","http://opendatacommunities.org/id/metropolitan-district-council/wolverhampton","ADOBE STOCK",19.99,"Communications & Marketing - General","5734","Subscriptions","26/08/2020"
"Wolverhampton City Council","http://opendatacommunities.org/id/metropolitan-district-council/wolverhampton","CARPET CENTRE LTD",412.5,"LAC Transitions Team","5713","Client Allowances","26/08/2020"
"Wolverhampton City Council","http://opendatacommunities.org/id/metropolitan-district-council/wolverhampton","CARPET CENTRE LTD",379.17,"LAC Transitions Team","5713","Client Allowances","26/08/2020"
"Wolverhampton City Council","http://opendatacommunities.org/id/metropolitan-district-council/wolverhampton","ASDA GROCERIES ONLINE",84.45,"Bradley Resource Centre","5411","Provisions (Not for resale)","26/08/2020"
"Wolverhampton City Council","http://opendatacommunities.org/id/metropolitan-district-council/wolverhampton","WOLVERHAMPTON T/O",49.17,"LAC Transitions Team","4112","Public Transport","26/08/2020"
"Wolverhampton City Council","http://opendatacommunities.org/id/metropolitan-district-council/wolverhampton","WP-CENTRAL TAXIS L",4,"EIP Locality 2","4121","Grant Payments","26/08/2020"
"Wolverhampton City Council","http://opendatacommunities.org/id/metropolitan-district-council/wolverhampton","WP-CENTRAL TAXIS L",248.8,"EIP Locality 4","4121","Grant Payments","26/08/2020"
"Wolverhampton City Council","http://opendatacommunities.org/id/metropolitan-district-council/wolverhampton","WEST MIDLANDS TRAV",16.2,"IMPACT","4131","Client Transport","26/08/2020"
"Wolverhampton City Council","http://opendatacommunities.org/id/metropolitan-district-council/wolverhampton","WEST MIDLANDS TRAV",16.2,"IMPACT","4131","Client Transport","26/08/2020"
"Wolverhampton City Council","http://opendatacommunities.org/id/metropolitan-district-council/wolverhampton","A2BGo Carz",3.5,"Youth Offending Team","4121","Client Transport","26/08/2020"
"Wolverhampton City Council","http://opendatacommunities.org/id/metropolitan-district-council/wolverhampton","A2BGo Carz",5.2,"Youth Offending Team","4121","Client Transport","26/08/2020"
"Wolverhampton City Council","http://opendatacommunities.org/id/metropolitan-district-council/wolverhampton","APPLE.COM/BILL",9.99,"Managing Director","5735","Computing - Purchase of Software","26/08/2020"
"Wolverhampton City Council","http://opendatacommunities.org/id/metropolitan-district-council/wolverhampton","ASDA SUPERSTORE",226.12,"LAC Transitions Accommodation","5411","Client Allowances","26/08/2020"
"Wolverhampton City Council","http://opendatacommunities.org/id/metropolitan-district-council/wolverhampton","VIRGIN MEDIA PYMTS",7.5,"Community Enablement","4814","Comms - Telephone Call charges","26/08/2020"
"Wolverhampton City Council","http://opendatacommunities.org/id/metropolitan-district-council/wolverhampton","TVLICENSING.CO.UK",157.5,"Duke Street Bungalows","7392","Services - General Licences","26/08/2020"
"Wolverhampton City Council","http://opendatacommunities.org/id/metropolitan-district-council/wolverhampton","POST OFFICE COUNTER",7.8,"MASH","9402","Comms - Postage","26/08/2020"
"Wolverhampton City Council","http://opendatacommunities.org/id/metropolitan-district-council/wolverhampton","WWW.KEYSIGNSUK.CO.UK",8.97,"Technical Support","7333","Materials","26/08/2020"
"Wolverhampton City Council","http://opendatacommunities.org/id/metropolitan-district-council/wolverhampton","EB  NETWORK PRACTITION",-131.01,"Head of Service - CINCP","7399","-","26/08/2020"
"Wolverhampton City Council","http://opendatacommunities.org/id/metropolitan-district-council/wolverhampton","WWW.CUNNINGHAMS.CO.UK/",250,"Business Support Services","5999","Professional fees","26/08/2020"
"Wolverhampton City Council","http://opendatacommunities.org/id/metropolitan-district-council/wolverhampton","AMZNMKTPLACE AMAZON.CO",98.43,"MI Friendly Cities","5999","Equipment - Purchase","25/08/2020"
"Wolverhampton City Council","http://opendatacommunities.org/id/metropolitan-district-council/wolverhampton","AMZNMktplace",10,"MI Friendly Cities","5999","Equipment - Purchase","25/08/2020"
"Wolverhampton City Council","http://opendatacommunities.org/id/metropolitan-district-council/wolverhampton","SCREWFIX DIRECT",29.99,"Waste Coll & Recycling Serv General","5211","-","25/08/2020"
"Wolverhampton City Council","http://opendatacommunities.org/id/metropolitan-district-council/wolverhampton","SCREWFIX DIRECT",39.99,"Waste Coll & Recycling Serv General","5211","-","25/08/2020"
"Wolverhampton City Council","http://opendatacommunities.org/id/metropolitan-district-council/wolverhampton","GOOGLE  ADS7951535462",500,"Communications & Marketing - General","7311","R4317","25/08/2020"
"Wolverhampton City Council","http://opendatacommunities.org/id/metropolitan-district-council/wolverhampton","NAMESCO",21.99,"SWP - Infrastructure","4816","R4317","25/08/2020"
"Wolverhampton City Council","http://opendatacommunities.org/id/metropolitan-district-council/wolverhampton","NAMESCO",14.99,"SWP - Infrastructure","4816","R4317","25/08/2020"
"Wolverhampton City Council","http://opendatacommunities.org/id/metropolitan-district-council/wolverhampton","BLACKPOOL PLEASURE",195,"Key to Inspiration","7999","Educ Trips, Holidays, Outings, Activity","25/08/2020"
"Wolverhampton City Council","http://opendatacommunities.org/id/metropolitan-district-council/wolverhampton","JAS TIMBER LTD-DOM",66.6,"Jai Patel","5039","Materials","25/08/2020"
"Wolverhampton City Council","http://opendatacommunities.org/id/metropolitan-district-council/wolverhampton","ARGOS LTD",64.11,"LAC Transitions Team","5310","Independant Living Allowance","25/08/2020"
"Wolverhampton City Council","http://opendatacommunities.org/id/metropolitan-district-council/wolverhampton","AMZNMktplace",17.48,"LAC Transitions Team","5999","Independant Living Allowance","25/08/2020"
"Wolverhampton City Council","http://opendatacommunities.org/id/metropolitan-district-council/wolverhampton","AMZNMktplace",58.32,"LAC Transitions Team","5999","Independant Living Allowance","25/08/2020"
"Wolverhampton City Council","http://opendatacommunities.org/id/metropolitan-district-council/wolverhampton","WP-CENTRAL TAXIS L",114,"EIP Locality 2","4121","Grant Payments","25/08/2020"
"Wolverhampton City Council","http://opendatacommunities.org/id/metropolitan-district-council/wolverhampton","PO OLD HILL 0676",29.17,"LAC Transitions Team","6011","Client Allowances","25/08/2020"
"Wolverhampton City Council","http://opendatacommunities.org/id/metropolitan-district-council/wolverhampton","AMZNMktplace",26.55,"Ernest Bold Court","5999","Equipment - Purchase","25/08/2020"
"Wolverhampton City Council","http://opendatacommunities.org/id/metropolitan-district-council/wolverhampton","TOOLSTATION LTD",11.49,"Public Conveniences","5211","Materials","25/08/2020"
"Wolverhampton City Council","http://opendatacommunities.org/id/metropolitan-district-council/wolverhampton","ASDA GROCERIES ONLINE",-0.52,"Upper Pendeford Farm Childrens Home","5411","Provisions (Not for resale)","25/08/2020"
"Wolverhampton City Council","http://opendatacommunities.org/id/metropolitan-district-council/wolverhampton","ASDA GROCERIES ONLINE",98.49,"Upper Pendeford Farm Childrens Home","5411","Provisions (Not for resale)","25/08/2020"
"Wolverhampton City Council","http://opendatacommunities.org/id/metropolitan-district-council/wolverhampton","AMZNMktplace",22.48,"LAC Transitions Accommodation","5999","Accommodation Costs","25/08/2020"
"Wolverhampton City Council","http://opendatacommunities.org/id/metropolitan-district-council/wolverhampton","AMZNMktplace",49.98,"Duke Street Bungalows","5999","Equipment - Purchase","25/08/2020"
"Wolverhampton City Council","http://opendatacommunities.org/id/metropolitan-district-council/wolverhampton","TVLICENSING.CO.UK",131.25,"LAC Transitions Team","7392","Client Allowances","25/08/2020"
"Wolverhampton City Council","http://opendatacommunities.org/id/metropolitan-district-council/wolverhampton","WHITEPAPER.CO.UK",99,"Workforce Development","5734","Training Expenses","25/08/2020"
"Wolverhampton City Council","http://opendatacommunities.org/id/metropolitan-district-council/wolverhampton","AMZNMktplace",88.2,"Road Safety","5999","Equipment - Purchase","25/08/2020"
"Wolverhampton City Council","http://opendatacommunities.org/id/metropolitan-district-council/wolverhampton","CO-OP GROUP 070362",10.8,"Northicote Farm","5411","Provisions (Not for resale)","25/08/2020"
"Wolverhampton City Council","http://opendatacommunities.org/id/metropolitan-district-council/wolverhampton","TFM FARM   COUNTRY",61.14,"Northicote Farm","0763","Provisions (Not for resale)","25/08/2020"
"Wolverhampton City Council","http://opendatacommunities.org/id/metropolitan-district-council/wolverhampton","BRASSINGTON & CO",15,"Northicote Farm","7299","Refuse Collection","25/08/2020"
"Wolverhampton City Council","http://opendatacommunities.org/id/metropolitan-district-council/wolverhampton","W M MORRISONS.COM",39.43,"Ernest Bold Court","5411","Provisions (Not for resale)","25/08/2020"
"Wolverhampton City Council","http://opendatacommunities.org/id/metropolitan-district-council/wolverhampton","WWW.SIGN-HOLDERS.CO.UK",34.97,"COVID19 Track and Trace","5999","Equipment - Hire","25/08/2020"
"Wolverhampton City Council","http://opendatacommunities.org/id/metropolitan-district-council/wolverhampton","SCREWFIX DIRECT",55.74,"Cemeteries","5211","Materials","25/08/2020"
"Wolverhampton City Council","http://opendatacommunities.org/id/metropolitan-district-council/wolverhampton","SumUp   Colin caddick",2.45,"LAC Transitions Accommodation","5399","Accommodation Costs","25/08/2020"
"Wolverhampton City Council","http://opendatacommunities.org/id/metropolitan-district-council/wolverhampton","POST OFFICE COUNTER",10.3,"LAC Transitions Team","9402","-","25/08/2020"
"Wolverhampton City Council","http://opendatacommunities.org/id/metropolitan-district-council/wolverhampton","WEST MIDLANDS TRAV",56.5,"IMPACT","4131","Public Transport","24/08/2020"
"Wolverhampton City Council","http://opendatacommunities.org/id/metropolitan-district-council/wolverhampton","ASDA SUPERSTORE",22.25,"Emergency Duty Team","5411","Section 17","24/08/2020"
"Wolverhampton City Council","http://opendatacommunities.org/id/metropolitan-district-council/wolverhampton","CUMMINGS BROTHERS LOCK",10,"Adult Services - West","7399","Fixtures and Fittings - R&M","24/08/2020"
"Wolverhampton City Council","http://opendatacommunities.org/id/metropolitan-district-council/wolverhampton","PREMIER INN",256.11,"Regional Adoption Agency","3811","Accommodation Costs","24/08/2020"
"Wolverhampton City Council","http://opendatacommunities.org/id/metropolitan-district-council/wolverhampton","AMZNMKTPLACE AMAZON.CO",10.68,"Ernest Bold Court","5999","Equipment - Purchase","24/08/2020"
"Wolverhampton City Council","http://opendatacommunities.org/id/metropolitan-district-council/wolverhampton","ARGOS LTD",-40,"LAC Transitions Team","5310","Client Allowances","24/08/2020"
"Wolverhampton City Council","http://opendatacommunities.org/id/metropolitan-district-council/wolverhampton","AMZNMKTPLACE AMAZON.CO",19.98,"Upper Pendeford Farm Childrens Home","5999","Provisions (Not for resale)","24/08/2020"
"Wolverhampton City Council","http://opendatacommunities.org/id/metropolitan-district-council/wolverhampton","RAGLAN STREET ST MARK",100,"Key to Inspiration","6011","Direct Work With Children","24/08/2020"
"Wolverhampton City Council","http://opendatacommunities.org/id/metropolitan-district-council/wolverhampton","SCREWFIX DIR. LTD",9.99,"LAC Transitions Accommodation","5211","Client Allowances","24/08/2020"
"Wolverhampton City Council","http://opendatacommunities.org/id/metropolitan-district-council/wolverhampton","AMZNMktplace",10.61,"Duke Street Bungalows","5999","R4010","24/08/2020"
"Wolverhampton City Council","http://opendatacommunities.org/id/metropolitan-district-council/wolverhampton","QUEENSWAY INTERIOR",125,"LAC Transitions Team","5712","Client Allowances","24/08/2020"
"Wolverhampton City Council","http://opendatacommunities.org/id/metropolitan-district-council/wolverhampton","ADOBE CREATIVE CLOUD",496.94,"Landscape","5734","Computing - Purchase of Software","24/08/2020"
"Wolverhampton City Council","http://opendatacommunities.org/id/metropolitan-district-council/wolverhampton","OAKLAND",180,"CIN/CP Social Work Unit - Area 3","7011","Accommodation Costs","24/08/2020"
"Wolverhampton City Council","http://opendatacommunities.org/id/metropolitan-district-council/wolverhampton","POST OFFICE COUNTER",2.06,"LAC Transitions Team","9402","-","24/08/2020"
"Wolverhampton City Council","http://opendatacommunities.org/id/metropolitan-district-council/wolverhampton","HOME BARGAINS WOLVERHA",13.53,"Passenger Transport - General","5251","-","24/08/2020"
"Wolverhampton City Council","http://opendatacommunities.org/id/metropolitan-district-council/wolverhampton","B&M 497 - HS WOLVES",10.1,"Passenger Transport - General","5399","-","24/08/2020"
"Wolverhampton City Council","http://opendatacommunities.org/id/metropolitan-district-council/wolverhampton","Amazon.co.uk UY1YT0HJ5",51.46,"MI Friendly Cities","5969","Equipment - Purchase","24/08/2020"
"Wolverhampton City Council","http://opendatacommunities.org/id/metropolitan-district-council/wolverhampton","MACHINE MART WEB",424.92,"MI Friendly Cities","7394","-","24/08/2020"
"Wolverhampton City Council","http://opendatacommunities.org/id/metropolitan-district-council/wolverhampton","THE UPHOLSTERY SHOP",225,"MI Friendly Cities","5714","Equipment - Purchase","24/08/2020"
"Wolverhampton City Council","http://opendatacommunities.org/id/metropolitan-district-council/wolverhampton","POWERTOOL WORLD",136.67,"MI Friendly Cities","5072","Equipment - Purchase","24/08/2020"
"Wolverhampton City Council","http://opendatacommunities.org/id/metropolitan-district-council/wolverhampton","AMZNMKTPLACE AMAZON.CO",1099.95,"MI Friendly Cities","5999","Equipment - Purchase","24/08/2020"
"Wolverhampton City Council","http://opendatacommunities.org/id/metropolitan-district-council/wolverhampton","AMZNMKTPLACE AMAZON.CO",17.5,"MI Friendly Cities","5999","Equipment - Purchase","24/08/2020"
"Wolverhampton City Council","http://opendatacommunities.org/id/metropolitan-district-council/wolverhampton","SCREWFIX DIRECT",-51.99,"Waste Coll & Recycling Serv General","5211","-","24/08/2020"
"Wolverhampton City Council","http://opendatacommunities.org/id/metropolitan-district-council/wolverhampton","FREEPIK & FLATICON",7.73,"Communications & Marketing - General","7221","Subscriptions","24/08/2020"
"Wolverhampton City Council","http://opendatacommunities.org/id/metropolitan-district-council/wolverhampton","TEMPLATEMONSTER",59.1,"Communications & Marketing - General","7372","R4317","24/08/2020"
"Wolverhampton City Council","http://opendatacommunities.org/id/metropolitan-district-council/wolverhampton","CROWD CONTROL SOLUTION",18,"COVID 19 - Food Distribution Hub","7399","Equipment - Purchase","24/08/2020"
"Wolverhampton City Council","http://opendatacommunities.org/id/metropolitan-district-council/wolverhampton","WM MORRISONS STORE",30.63,"Bradley Resource Centre","5411","Provisions (Not for resale)","24/08/2020"
"Wolverhampton City Council","http://opendatacommunities.org/id/metropolitan-district-council/wolverhampton","POUNDLAND LTD",22.1,"Specialist Support Service - North","5310","-","24/08/2020"
"Wolverhampton City Council","http://opendatacommunities.org/id/metropolitan-district-council/wolverhampton","HM PASSPORT OFFICE",80.5,"LAC Transitions Team","9399","-","21/08/2020"
"Wolverhampton City Council","http://opendatacommunities.org/id/metropolitan-district-council/wolverhampton","B&Q DIRECT",562.02,"MI Friendly Cities","5200","Equipment - Purchase","21/08/2020"
"Wolverhampton City Council","http://opendatacommunities.org/id/metropolitan-district-council/wolverhampton","BUILDEX",177,"MI Friendly Cities","5211","Equipment - Purchase","21/08/2020"
"Wolverhampton City Council","http://opendatacommunities.org/id/metropolitan-district-council/wolverhampton","GEN REGISTER OFFICE",14,"Lac Transitions","9399","Services - Supplies & Services to users","21/08/2020"
"Wolverhampton City Council","http://opendatacommunities.org/id/metropolitan-district-council/wolverhampton","GEN REGISTER OFFICE",14,"Lac Transitions","9399","Services - Supplies & Services to users","21/08/2020"
"Wolverhampton City Council","http://opendatacommunities.org/id/metropolitan-district-council/wolverhampton","HM PASSPORT OFFICE",49,"Lac Transitions","9399","Services - Supplies & Services to users","21/08/2020"
"Wolverhampton City Council","http://opendatacommunities.org/id/metropolitan-district-council/wolverhampton","NETFLIX.COM",9.99,"Key to Inspiration","4899","Educ Trips, Holidays, Outings, Activity","21/08/2020"
"Wolverhampton City Council","http://opendatacommunities.org/id/metropolitan-district-council/wolverhampton","ICELAND",133.41,"Bradley Resource Centre","5411","Provisions (Not for resale)","21/08/2020"
"Wolverhampton City Council","http://opendatacommunities.org/id/metropolitan-district-council/wolverhampton","ASDA SUPERSTORE",104.3,"Key to Inspiration","5411","Provisions (Not for resale)","21/08/2020"
"Wolverhampton City Council","http://opendatacommunities.org/id/metropolitan-district-council/wolverhampton","ASDA SUPERSTORE",185.77,"Key to Inspiration","5411","Provisions (Not for resale)","21/08/2020"
"Wolverhampton City Council","http://opendatacommunities.org/id/metropolitan-district-council/wolverhampton","ARGOS LTD",99.94,"LAC Transitions Team","5310","Independant Living Allowance","21/08/2020"
"Wolverhampton City Council","http://opendatacommunities.org/id/metropolitan-district-council/wolverhampton","WM MORRISONS STORE",1.7,"Ernest Bold Court","5411","Provisions (Not for resale)","21/08/2020"
"Wolverhampton City Council","http://opendatacommunities.org/id/metropolitan-district-council/wolverhampton","ARGOS LTD",83.32,"LAC Transitions Team","5310","Client Allowances","21/08/2020"
"Wolverhampton City Council","http://opendatacommunities.org/id/metropolitan-district-council/wolverhampton","CardtronicsUK",133.33,"LAC Transitions Team","6011","Independant Living Allowance","21/08/2020"
"Wolverhampton City Council","http://opendatacommunities.org/id/metropolitan-district-council/wolverhampton","A2BGo Carz",5.6,"Youth Offending Team","4121","Client Transport","21/08/2020"
"Wolverhampton City Council","http://opendatacommunities.org/id/metropolitan-district-council/wolverhampton","A2BGo Carz",5.5,"Youth Offending Team","4121","Client Transport","21/08/2020"
"Wolverhampton City Council","http://opendatacommunities.org/id/metropolitan-district-council/wolverhampton","WF  WAYFAIR 3401478854",199.99,"LAC Transitions Team","5712","Client Allowances","21/08/2020"
"Wolverhampton City Council","http://opendatacommunities.org/id/metropolitan-district-council/wolverhampton","WWW.TOOLSTATION.COM",26,"Caretakers Community Centre","5251","-","21/08/2020"
"Wolverhampton City Council","http://opendatacommunities.org/id/metropolitan-district-council/wolverhampton","ARGOS LTD",232.95,"LAC Transitions Team","5310","Client Allowances","21/08/2020"
"Wolverhampton City Council","http://opendatacommunities.org/id/metropolitan-district-council/wolverhampton","RAYTON ELECT WSALERS L",34.24,"Cleaning of Buildings - General","5999","-","21/08/2020"
"Wolverhampton City Council","http://opendatacommunities.org/id/metropolitan-district-council/wolverhampton","CARVER/WOLVERHAMPTON/L",56.03,"Cleaning of Buildings - General","5211","-","21/08/2020"
"Wolverhampton City Council","http://opendatacommunities.org/id/metropolitan-district-council/wolverhampton","BISON MACHINERY LTD",1915.32,"Business Support Services","5969","Equipment - Purchase","21/08/2020"
"Wolverhampton City Council","http://opendatacommunities.org/id/metropolitan-district-council/wolverhampton","MYCLOTHING",43.5,"CIN/CP Social Work Unit - Area 5","5137","Clothing / Uniforms","21/08/2020"
"Wolverhampton City Council","http://opendatacommunities.org/id/metropolitan-district-council/wolverhampton","NoteMachine ATM",58.33,"LAC Transitions Team","6011","Client Allowances","21/08/2020"
"Wolverhampton City Council","http://opendatacommunities.org/id/metropolitan-district-council/wolverhampton","SAINSBURYS 2040",20,"Duke Street Bungalows","5411","Equipment - Purchase","21/08/2020"
"Wolverhampton City Council","http://opendatacommunities.org/id/metropolitan-district-council/wolverhampton","SAINSBURYS 2040",27.18,"Duke Street Bungalows","5411","Provisions (Not for resale)","21/08/2020"
"Wolverhampton City Council","http://opendatacommunities.org/id/metropolitan-district-council/wolverhampton","B&Q DIRECT",36.8,"LAC Transitions Team","5200","-","20/08/2020"
"Wolverhampton City Council","http://opendatacommunities.org/id/metropolitan-district-council/wolverhampton","WM MORRISONS STORE",71.81,"Bradley Resource Centre","5411","Provisions (Not for resale)","20/08/2020"
"Wolverhampton City Council","http://opendatacommunities.org/id/metropolitan-district-council/wolverhampton","UKN01371",58.33,"LAC Transitions Team","6011","Client Allowances","20/08/2020"
"Wolverhampton City Council","http://opendatacommunities.org/id/metropolitan-district-council/wolverhampton","POST OFFICE COUNTER",5.58,"LAC Transitions Team","9402","Client Allowances","20/08/2020"
"Wolverhampton City Council","http://opendatacommunities.org/id/metropolitan-district-council/wolverhampton","DULUX DECORATOR CENTRE",214.48,"Technician","5198","Materials","20/08/2020"
"Wolverhampton City Council","http://opendatacommunities.org/id/metropolitan-district-council/wolverhampton","SEVERN TRENT WATER",57.1,"LAC Transitions Team","4900","Accommodation Costs","20/08/2020"
"Wolverhampton City Council","http://opendatacommunities.org/id/metropolitan-district-council/wolverhampton","SEVERN TRENT WATER",41.92,"LAC Transitions Team","4900","-","20/08/2020"
"Wolverhampton City Council","http://opendatacommunities.org/id/metropolitan-district-council/wolverhampton","AMZNMktplace",7.48,"Regional Adoption Agency","5999","Stationery","20/08/2020"
"Wolverhampton City Council","http://opendatacommunities.org/id/metropolitan-district-council/wolverhampton","J P LENNARD LTD",262.15,"Aldersley Leisure Village","5941","Equipment - Purchase","20/08/2020"
"Wolverhampton City Council","http://opendatacommunities.org/id/metropolitan-district-council/wolverhampton","ARGOS LTD",25.37,"Fostering Team & Allowances","5310","Computing - Purchase of Hardware","20/08/2020"
"Wolverhampton City Council","http://opendatacommunities.org/id/metropolitan-district-council/wolverhampton","ARGOS LTD",24.16,"Fostering Team & Allowances","5310","Computing - Purchase of Hardware","20/08/2020"
"Wolverhampton City Council","http://opendatacommunities.org/id/metropolitan-district-council/wolverhampton","AELP.ORG.UK",275,"Employment Programmes","8299","Conference Expenses","20/08/2020"
"Wolverhampton City Council","http://opendatacommunities.org/id/metropolitan-district-council/wolverhampton","schuh limited",100,"Pupil Premium","5661","Direct Work With Children","20/08/2020"
"Wolverhampton City Council","http://opendatacommunities.org/id/metropolitan-district-council/wolverhampton","ARGOS LTD",166.66,"LAC Transitions Team","5310","Client Allowances","20/08/2020"
"Wolverhampton City Council","http://opendatacommunities.org/id/metropolitan-district-council/wolverhampton","CURRYS ONLINE",212.49,"LAC Transitions Team","5732","Client Allowances","20/08/2020"
"Wolverhampton City Council","http://opendatacommunities.org/id/metropolitan-district-council/wolverhampton","CITY OF WOLVERHAMPTON",49,"Looked After Team 2","9399","Services - Fees and Charges","20/08/2020"
"Wolverhampton City Council","http://opendatacommunities.org/id/metropolitan-district-council/wolverhampton","AMZNMktplace",32.89,"Upper Pendeford Farm Childrens Home","5999","Equipment - Health and Safety","20/08/2020"
"Wolverhampton City Council","http://opendatacommunities.org/id/metropolitan-district-council/wolverhampton","ROYAL CARPETS",416.67,"LAC Transitions Accommodation","5713","Client Allowances","20/08/2020"
"Wolverhampton City Council","http://opendatacommunities.org/id/metropolitan-district-council/wolverhampton","ROYAL CARPETS",333.33,"LAC Transitions Accommodation","5713","Client Allowances","20/08/2020"
"Wolverhampton City Council","http://opendatacommunities.org/id/metropolitan-district-council/wolverhampton","ROYAL CARPETS",333.33,"LAC Transitions Accommodation","5713","Client Allowances","20/08/2020"
"Wolverhampton City Council","http://opendatacommunities.org/id/metropolitan-district-council/wolverhampton","Avanti West Coast",12.3,"LAC Team","4112","Financial Assistance In Exceptional Circ","20/08/2020"
"Wolverhampton City Council","http://opendatacommunities.org/id/metropolitan-district-council/wolverhampton","ARGOS LTD",295.77,"LAC Transitions Team","5310","Client Allowances","20/08/2020"
"Wolverhampton City Council","http://opendatacommunities.org/id/metropolitan-district-council/wolverhampton","HUGHES",379.37,"LAC Transitions Team","5732","Client Allowances","20/08/2020"
"Wolverhampton City Council","http://opendatacommunities.org/id/metropolitan-district-council/wolverhampton","SNAPFISH UK",9.49,"CIN/CP Social Work Unit - Area 4","7395","-","20/08/2020"
"Wolverhampton City Council","http://opendatacommunities.org/id/metropolitan-district-council/wolverhampton","ALBRIGHTON FEEDS LTD",112,"Culwell Street Depot","5995","-","20/08/2020"
"Wolverhampton City Council","http://opendatacommunities.org/id/metropolitan-district-council/wolverhampton","AMZNMKTPLACE AMAZON.CO",15.79,"Community Enablement","5999","Materials","20/08/2020"
"Wolverhampton City Council","http://opendatacommunities.org/id/metropolitan-district-council/wolverhampton","SCREWFIX DIRECT",28.5,"COVID19 Track and Trace","5211","Equipment - Purchase","19/08/2020"
"Wolverhampton City Council","http://opendatacommunities.org/id/metropolitan-district-council/wolverhampton","SCREWFIX DIRECT",76,"COVID19 Track and Trace","5211","Equipment - Purchase","19/08/2020"
"Wolverhampton City Council","http://opendatacommunities.org/id/metropolitan-district-council/wolverhampton","LOYD 89 CHURCH STREET",80,"LAC Transitions Team","6011","-","19/08/2020"
"Wolverhampton City Council","http://opendatacommunities.org/id/metropolitan-district-council/wolverhampton","AMZNMktplace",43.6,"Strategic ICTS (ICT Serv Budget)","5999","Equipment - Health and Safety","19/08/2020"
"Wolverhampton City Council","http://opendatacommunities.org/id/metropolitan-district-council/wolverhampton","AMZNMktplace",25.88,"Power2 Team","5999","Direct Work With Children","19/08/2020"
"Wolverhampton City Council","http://opendatacommunities.org/id/metropolitan-district-council/wolverhampton","GOOGLE  ADS7951535462",500,"Headstart - Young People Engagement","7311","R4317","19/08/2020"
"Wolverhampton City Council","http://opendatacommunities.org/id/metropolitan-district-council/wolverhampton","DIXONS FAMILY BUTCHERS",200,"Bradley Resource Centre","5499","Provisions (Not for resale)","19/08/2020"
"Wolverhampton City Council","http://opendatacommunities.org/id/metropolitan-district-council/wolverhampton","W M MORRISONS.COM",191.95,"Bradley Resource Centre","5411","Provisions (Not for resale)","19/08/2020"
"Wolverhampton City Council","http://opendatacommunities.org/id/metropolitan-district-council/wolverhampton","Avanti West Coast",81.6,"Strategic ICTS (ICT Serv Budget)","4112","Public Transport","19/08/2020"
"Wolverhampton City Council","http://opendatacommunities.org/id/metropolitan-district-council/wolverhampton","PAYPAL  THIERRY EBAY T",-84.99,"Hickman Avenue Depot","5999","Equipment - Purchase","19/08/2020"
"Wolverhampton City Council","http://opendatacommunities.org/id/metropolitan-district-council/wolverhampton","AMZNMktplace",12.49,"LAC Transitions Team","5999","Independant Living Allowance","19/08/2020"
"Wolverhampton City Council","http://opendatacommunities.org/id/metropolitan-district-council/wolverhampton","AMZNMktplace",13.32,"LAC Transitions Team","5999","Independant Living Allowance","19/08/2020"
"Wolverhampton City Council","http://opendatacommunities.org/id/metropolitan-district-council/wolverhampton","WP-CENTRAL TAXIS L",112.1,"EIP Locality 2","4121","Grant Payments","19/08/2020"
"Wolverhampton City Council","http://opendatacommunities.org/id/metropolitan-district-council/wolverhampton","AMZ Pellicom",-16.66,"Regional Adoption Agency","5999","Stationery","19/08/2020"
"Wolverhampton City Council","http://opendatacommunities.org/id/metropolitan-district-council/wolverhampton","thetrainline.com",37.75,"CIN/CP Social Work Unit - Area 8","4112","Section 17","19/08/2020"
"Wolverhampton City Council","http://opendatacommunities.org/id/metropolitan-district-council/wolverhampton","Avanti West Coast",69.8,"LAC Team","4112","Public Transport","19/08/2020"
"Wolverhampton City Council","http://opendatacommunities.org/id/metropolitan-district-council/wolverhampton","LEE BROTHERS",2952,"Independant Living Services","5085","-","19/08/2020"
"Wolverhampton City Council","http://opendatacommunities.org/id/metropolitan-district-council/wolverhampton","Amazon.co.uk LZ56I6J55",15,"Global Budgets","5969","Marketing \ Non-staff advertising","19/08/2020"
"Wolverhampton City Council","http://opendatacommunities.org/id/metropolitan-district-council/wolverhampton","Amazon.co.uk KG0MZ8DY5",35,"Global Budgets","5969","Marketing \ Non-staff advertising","19/08/2020"
"Wolverhampton City Council","http://opendatacommunities.org/id/metropolitan-district-council/wolverhampton","HOME BARGAINS ONLINE",24.73,"Inclusion Support","5251","Cleaning Supplies and Materials","19/08/2020"
"Wolverhampton City Council","http://opendatacommunities.org/id/metropolitan-district-council/wolverhampton","HOME BARGAINS ONLINE",24.73,"Inclusion Support","5251","Cleaning Supplies and Materials","19/08/2020"
"Wolverhampton City Council","http://opendatacommunities.org/id/metropolitan-district-council/wolverhampton","WWW.WILMINGTON.CO.",-80,"Workforce Development","8699","Training Expenses","19/08/2020"
"Wolverhampton City Council","http://opendatacommunities.org/id/metropolitan-district-council/wolverhampton","DUDLEY ZOOLOGICAL GARD",61.9,"Upper Pendeford Farm Childrens Home","7998","Educ Trips, Holidays, Outings, Activity","19/08/2020"
"Wolverhampton City Council","http://opendatacommunities.org/id/metropolitan-district-council/wolverhampton","WOLVERHAMPTON LOW FUEL",40,"Upper Pendeford Farm Childrens Home","5541","Hire of Vehices - Fleet Management","19/08/2020"
"Wolverhampton City Council","http://opendatacommunities.org/id/metropolitan-district-council/wolverhampton","AMZNMktplace",10.9,"Community Enablement","5999","Materials","19/08/2020"
"Wolverhampton City Council","http://opendatacommunities.org/id/metropolitan-district-council/wolverhampton","W M MORRISONS.COM",44.82,"Ernest Bold Court","5411","Provisions (Not for resale)","18/08/2020"
"Wolverhampton City Council","http://opendatacommunities.org/id/metropolitan-district-council/wolverhampton","B&M 111 - DUDLEY",20.98,"COVID19 Track and Trace","5399","Equipment - Purchase","18/08/2020"
"Wolverhampton City Council","http://opendatacommunities.org/id/metropolitan-district-council/wolverhampton","WILKO RETAIL LIMITED",16.67,"COVID19 Track and Trace","5399","Equipment - Purchase","18/08/2020"
"Wolverhampton City Council","http://opendatacommunities.org/id/metropolitan-district-council/wolverhampton","ENJOY WOLVERHAMPTON",31.3,"SWP � Cohesion Activities","5399","Provisions (Not for resale)","18/08/2020"
"Wolverhampton City Council","http://opendatacommunities.org/id/metropolitan-district-council/wolverhampton","SumUp   Bargain Beerz",9.12,"LAC Transitions Team","5411","-","18/08/2020"
"Wolverhampton City Council","http://opendatacommunities.org/id/metropolitan-district-council/wolverhampton","AMZNMktplace",21.61,"Power2 Team","5999","Direct Work With Children","18/08/2020"
"Wolverhampton City Council","http://opendatacommunities.org/id/metropolitan-district-council/wolverhampton","Amazon.co.uk NF86B01M5",26.14,"Power2 Team","5969","Direct Work With Children","18/08/2020"
"Wolverhampton City Council","http://opendatacommunities.org/id/metropolitan-district-council/wolverhampton","AMZNMktplace",25.86,"Key to Inspiration","5999","Direct Work With Children","18/08/2020"
"Wolverhampton City Council","http://opendatacommunities.org/id/metropolitan-district-council/wolverhampton","WM MORRISONS STORE",19.19,"Bradley Resource Centre","5411","Provisions (Not for resale)","18/08/2020"
"Wolverhampton City Council","http://opendatacommunities.org/id/metropolitan-district-council/wolverhampton","HOTELSCOM9196609613674",93.5,"Strategic ICTS (ICT Serv Budget)","4722","Accommodation Costs","18/08/2020"
"Wolverhampton City Council","http://opendatacommunities.org/id/metropolitan-district-council/wolverhampton","S CRAFT",108,"Collections & Conservation","5734","Materials","18/08/2020"
"Wolverhampton City Council","http://opendatacommunities.org/id/metropolitan-district-council/wolverhampton","ARGOS LTD",101.62,"LAC Transitions Team","5310","Independant Living Allowance","18/08/2020"
"Wolverhampton City Council","http://opendatacommunities.org/id/metropolitan-district-council/wolverhampton","IKEA LTD SHOP ONLINE",125.83,"LAC Transitions Team","5712","Independant Living Allowance","18/08/2020"
"Wolverhampton City Council","http://opendatacommunities.org/id/metropolitan-district-council/wolverhampton","ARGOS LTD",10.79,"LAC Transitions Team","5310","Client Allowances","18/08/2020"
"Wolverhampton City Council","http://opendatacommunities.org/id/metropolitan-district-council/wolverhampton","ROOKERY Sainsburys Ba",50,"LAC Transitions Team","6011","Client Allowances","18/08/2020"
"Wolverhampton City Council","http://opendatacommunities.org/id/metropolitan-district-council/wolverhampton","XPRESS COFFEE SERVICES",325,"Bert Williams Leisure Centre","5499","-","18/08/2020"
"Wolverhampton City Council","http://opendatacommunities.org/id/metropolitan-district-council/wolverhampton","AMZNMKTPLACE AMAZON.CO",19.98,"Youth Offending Team","5999","Educ Trips, Holidays, Outings, Activity","18/08/2020"
"Wolverhampton City Council","http://opendatacommunities.org/id/metropolitan-district-council/wolverhampton","ARGOS LTD",-3.95,"LAC Transitions Team","5310","Client Allowances","18/08/2020"
"Wolverhampton City Council","http://opendatacommunities.org/id/metropolitan-district-council/wolverhampton","ASDA GROCERIES ONLINE",-0.03,"Upper Pendeford Farm Childrens Home","5411","Provisions (Not for resale)","18/08/2020"
"Wolverhampton City Council","http://opendatacommunities.org/id/metropolitan-district-council/wolverhampton","ASDA GROCERIES ONLINE",161.29,"Upper Pendeford Farm Childrens Home","5411","Provisions (Not for resale)","18/08/2020"
"Wolverhampton City Council","http://opendatacommunities.org/id/metropolitan-district-council/wolverhampton","thetrainline.com",37.39,"CIN/CP Social Work Unit - Area 8","4112","Client Transport","18/08/2020"
"Wolverhampton City Council","http://opendatacommunities.org/id/metropolitan-district-council/wolverhampton","NoteMachine ATM",25,"LAC Transitions Team","6011","Client Allowances","18/08/2020"
"Wolverhampton City Council","http://opendatacommunities.org/id/metropolitan-district-council/wolverhampton","ROYAL CARPETS",341.67,"LAC Transitions Team","5713","Client Allowances","18/08/2020"
"Wolverhampton City Council","http://opendatacommunities.org/id/metropolitan-district-council/wolverhampton","LOYD 37 CHURCH STREET",200,"Duke Street Bungalows","6011","Provisions (Not for resale)","18/08/2020"
"Wolverhampton City Council","http://opendatacommunities.org/id/metropolitan-district-council/wolverhampton","EE TOP UP VESTA",10,"School Crossing Patrol","4814","Comms - Mobile Telephones","18/08/2020"
"Wolverhampton City Council","http://opendatacommunities.org/id/metropolitan-district-council/wolverhampton","EE TOP UP VESTA",10,"School Crossing Patrol","4814","Comms - Mobile Telephones","18/08/2020"
"Wolverhampton City Council","http://opendatacommunities.org/id/metropolitan-district-council/wolverhampton","CARD FACTORY",16.36,"LAC Transitions Team","5947","-","17/08/2020"
"Wolverhampton City Council","http://opendatacommunities.org/id/metropolitan-district-council/wolverhampton","AMZNMktplace",33.32,"Electoral Registration","5999","Equipment - Health and Safety","17/08/2020"
"Wolverhampton City Council","http://opendatacommunities.org/id/metropolitan-district-council/wolverhampton","AMZNMktplace",4.95,"Power2 Team","5999","Direct Work With Children","17/08/2020"
"Wolverhampton City Council","http://opendatacommunities.org/id/metropolitan-district-council/wolverhampton","AMZNMktplace",3.32,"Power2 Team","5999","Direct Work With Children","17/08/2020"
"Wolverhampton City Council","http://opendatacommunities.org/id/metropolitan-district-council/wolverhampton","AMZNMktplace",4.16,"Power2 Team","5999","Direct Work With Children","17/08/2020"
"Wolverhampton City Council","http://opendatacommunities.org/id/metropolitan-district-council/wolverhampton","AMZNMktplace",9.99,"Power2 Team","5999","Direct Work With Children","17/08/2020"
"Wolverhampton City Council","http://opendatacommunities.org/id/metropolitan-district-council/wolverhampton","FACEBK EGCQSWW9R2",500,"Communications & Marketing - General","7311","R4317","17/08/2020"
"Wolverhampton City Council","http://opendatacommunities.org/id/metropolitan-district-council/wolverhampton","WM MORRISONS STORE",55.43,"Bradley Resource Centre","5411","Provisions (Not for resale)","17/08/2020"
"Wolverhampton City Council","http://opendatacommunities.org/id/metropolitan-district-council/wolverhampton","B & Q 1169",44.3,"Jai Patel","5200","Equipment - Purchase","17/08/2020"
"Wolverhampton City Council","http://opendatacommunities.org/id/metropolitan-district-council/wolverhampton","ICELAND",8.46,"LAC Transitions Team","5411","Client Allowances","17/08/2020"
"Wolverhampton City Council","http://opendatacommunities.org/id/metropolitan-district-council/wolverhampton","PREMIER INN",110.96,"Regional Adoption Agency","3811","Accommodation Costs","17/08/2020"
"Wolverhampton City Council","http://opendatacommunities.org/id/metropolitan-district-council/wolverhampton","PREMIER INN",104.96,"Regional Adoption Agency","3811","Accommodation Costs","17/08/2020"
"Wolverhampton City Council","http://opendatacommunities.org/id/metropolitan-district-council/wolverhampton","Amazon.co.uk TL75M39W5",13.89,"Regional Adoption Agency","5969","Books","17/08/2020"
"Wolverhampton City Council","http://opendatacommunities.org/id/metropolitan-district-council/wolverhampton","WP-CENTRAL TAXIS L",242.5,"EIP Locality 4","4121","Grant Payments","17/08/2020"
"Wolverhampton City Council","http://opendatacommunities.org/id/metropolitan-district-council/wolverhampton","APPLE.COM/BILL",2.07,"Corporate Parenting","5735","Computing - Purchase of Software","17/08/2020"
"Wolverhampton City Council","http://opendatacommunities.org/id/metropolitan-district-council/wolverhampton","DC PAYMENTS",250,"Looked After Team 2","6011","Clothing / Uniforms","17/08/2020"
"Wolverhampton City Council","http://opendatacommunities.org/id/metropolitan-district-council/wolverhampton","DC PAYMENTS",150,"Looked After Team 2","6011","Financial Assistance In Exceptional Circ","17/08/2020"
"Wolverhampton City Council","http://opendatacommunities.org/id/metropolitan-district-council/wolverhampton","ASDA STORES 7134",5,"Upper Pendeford Farm Childrens Home","5411","Provisions (Not for resale)","17/08/2020"
"Wolverhampton City Council","http://opendatacommunities.org/id/metropolitan-district-council/wolverhampton","Avanti West Coast",19.2,"Lac Transitions","4112","Client Allowances","17/08/2020"
"Wolverhampton City Council","http://opendatacommunities.org/id/metropolitan-district-council/wolverhampton","2CO.COM ARI Soft",27.67,"ICT Services","5817","Computing - Purchase of Software","17/08/2020"
"Wolverhampton City Council","http://opendatacommunities.org/id/metropolitan-district-council/wolverhampton","HOME BARGAINS",7.97,"Bilston Market & Licensed Operations","5251","R4007","17/08/2020"
"Wolverhampton City Council","http://opendatacommunities.org/id/metropolitan-district-council/wolverhampton","WIX.COM",776.08,"Technical Support","5968","Computing - Purchase of Software","17/08/2020"
"Wolverhampton City Council","http://opendatacommunities.org/id/metropolitan-district-council/wolverhampton","QUEENSWAY INTERIOR",332.5,"LAC Transitions Team","5712","Client Allowances","17/08/2020"
"Wolverhampton City Council","http://opendatacommunities.org/id/metropolitan-district-council/wolverhampton","QUEENSWAY INTERIOR",133.33,"LAC Transitions Team","5712","Client Allowances","17/08/2020"
"Wolverhampton City Council","http://opendatacommunities.org/id/metropolitan-district-council/wolverhampton","AMZNMktplace",12.9,"Community Enablement","5999","Materials","17/08/2020"
"Wolverhampton City Council","http://opendatacommunities.org/id/metropolitan-district-council/wolverhampton","AMZNMktplace",17.07,"Community Enablement","5999","Materials","17/08/2020"
"Wolverhampton City Council","http://opendatacommunities.org/id/metropolitan-district-council/wolverhampton","AMZNMktplace",9.65,"Community Enablement","5999","Materials","17/08/2020"
"Wolverhampton City Council","http://opendatacommunities.org/id/metropolitan-district-council/wolverhampton","AMZNMktplace",3.32,"Community Enablement","5999","Materials","17/08/2020"
"Wolverhampton City Council","http://opendatacommunities.org/id/metropolitan-district-council/wolverhampton","ROOKERY Sainsburys Ba",200,"Duke Street Bungalows","6011","Provisions (Not for resale)","17/08/2020"
"Wolverhampton City Council","http://opendatacommunities.org/id/metropolitan-district-council/wolverhampton","Amazon.co.uk XA84X23L5",28.32,"Business Support Unit","5969","Stationery","17/08/2020"
"Wolverhampton City Council","http://opendatacommunities.org/id/metropolitan-district-council/wolverhampton","GAZEBOSHOP",848.3,"COVID19 Track and Trace","5998","Equipment - Purchase","14/08/2020"
"Wolverhampton City Council","http://opendatacommunities.org/id/metropolitan-district-council/wolverhampton","ARGOS LTD",40,"COVID19 Track and Trace","5310","Equipment - Purchase","14/08/2020"
"Wolverhampton City Council","http://opendatacommunities.org/id/metropolitan-district-council/wolverhampton","HOME BARGAINS",11.87,"COVID19 Track and Trace","5251","Equipment - Purchase","14/08/2020"
"Wolverhampton City Council","http://opendatacommunities.org/id/metropolitan-district-council/wolverhampton","HOME BARGAINS WOLVERHA",169.17,"COVID19 Track and Trace","5251","Equipment - Purchase","14/08/2020"
"Wolverhampton City Council","http://opendatacommunities.org/id/metropolitan-district-council/wolverhampton","WILKO RETAIL LIMITED",18.42,"COVID19 Track and Trace","5399","Equipment - Purchase","14/08/2020"
"Wolverhampton City Council","http://opendatacommunities.org/id/metropolitan-district-council/wolverhampton","B&M 333 - AN BENTLEY B",97.1,"COVID19 Track and Trace","5399","Equipment - Purchase","14/08/2020"
"Wolverhampton City Council","http://opendatacommunities.org/id/metropolitan-district-council/wolverhampton","IZ  D & K TRADING (MID",6.67,"LAC Transitions Accommodation","5999","Accommodation Costs","14/08/2020"
"Wolverhampton City Council","http://opendatacommunities.org/id/metropolitan-district-council/wolverhampton","IZ  D & K TRADING (MID",9,"LAC Transitions Accommodation","5999","Accommodation Costs","14/08/2020"
"Wolverhampton City Council","http://opendatacommunities.org/id/metropolitan-district-council/wolverhampton","SCREWFIX DIRECT",51.99,"Waste Coll & Recycling Serv General","5211","-","14/08/2020"
"Wolverhampton City Council","http://opendatacommunities.org/id/metropolitan-district-council/wolverhampton","HIGHSTREET VOUCHERS",100,"Power2 Team","8641","Direct Work With Children","14/08/2020"
"Wolverhampton City Council","http://opendatacommunities.org/id/metropolitan-district-council/wolverhampton","HIGHSTREET VOUCHERS",100,"Power2 Team","8641","Direct Work With Children","14/08/2020"
"Wolverhampton City Council","http://opendatacommunities.org/id/metropolitan-district-council/wolverhampton","AMZNMktplace",23.98,"Power2 Team","5999","Direct Work With Children","14/08/2020"
"Wolverhampton City Council","http://opendatacommunities.org/id/metropolitan-district-council/wolverhampton","Amazon.co.uk II9227KW5",36.18,"Power2 Team","5969","Direct Work With Children","14/08/2020"
"Wolverhampton City Council","http://opendatacommunities.org/id/metropolitan-district-council/wolverhampton","Amazon.co.uk HG7HI6EA5",36.18,"Power2 Team","5969","Direct Work With Children","14/08/2020"
"Wolverhampton City Council","http://opendatacommunities.org/id/metropolitan-district-council/wolverhampton","ETSY.COM SMILECLEARMAS",51.13,"Power2 Team","5699","Direct Work With Children","14/08/2020"
"Wolverhampton City Council","http://opendatacommunities.org/id/metropolitan-district-council/wolverhampton","EB  DISRUPTING EXPLOIT",9.27,"Safeguarding Admin Resource","7399","Training Expenses","14/08/2020"
"Wolverhampton City Council","http://opendatacommunities.org/id/metropolitan-district-council/wolverhampton","JUST PROJECTORS",-790,"Collections & Conservation","5044","Equipment - Purchase","14/08/2020"
"Wolverhampton City Council","http://opendatacommunities.org/id/metropolitan-district-council/wolverhampton","AMZNMktplace",20.36,"Art Gallery","5999","Fixtures and Fittings - R&M","14/08/2020"
"Wolverhampton City Council","http://opendatacommunities.org/id/metropolitan-district-council/wolverhampton","ASDA SUPERSTORE",44.16,"Key to Inspiration","5411","Provisions (Not for resale)","14/08/2020"
"Wolverhampton City Council","http://opendatacommunities.org/id/metropolitan-district-council/wolverhampton","ASDA SUPERSTORE",162.52,"Key to Inspiration","5411","Provisions (Not for resale)","14/08/2020"
"Wolverhampton City Council","http://opendatacommunities.org/id/metropolitan-district-council/wolverhampton","B&M 497 - HS WOLVES",159.72,"LAC Transitions Team","5399","Client Allowances","14/08/2020"
"Wolverhampton City Council","http://opendatacommunities.org/id/metropolitan-district-council/wolverhampton","ROOKERY Sainsburys Ba",40,"LAC Transitions Team","6011","Client Allowances","14/08/2020"
"Wolverhampton City Council","http://opendatacommunities.org/id/metropolitan-district-council/wolverhampton","HM PASSPORT OFFICE",49,"LAC Team","9399","Services - Fees and Charges","14/08/2020"
"Wolverhampton City Council","http://opendatacommunities.org/id/metropolitan-district-council/wolverhampton","WWW.WOLVERHAMPTON.GOV.",73.53,"LAC Transitions Accommodation","9399","Client Allowances","14/08/2020"
"Wolverhampton City Council","http://opendatacommunities.org/id/metropolitan-district-council/wolverhampton","4IMPRINT DIRECT",271.95,"Global Budgets","5968","Materials","14/08/2020"
"Wolverhampton City Council","http://opendatacommunities.org/id/metropolitan-district-council/wolverhampton","GEN REGISTER OFFICE",45.25,"Centralised External Legal Costs","9399","Services - Fees and Charges","14/08/2020"
"Wolverhampton City Council","http://opendatacommunities.org/id/metropolitan-district-council/wolverhampton","CATERING APPLIANCE SUP",614.85,"Food and Health & Safety","5811","Equipment - Purchase","14/08/2020"
"Wolverhampton City Council","http://opendatacommunities.org/id/metropolitan-district-council/wolverhampton","NoteMachine ATM",25,"LAC Transitions Team","6011","Client Allowances","14/08/2020"
"Wolverhampton City Council","http://opendatacommunities.org/id/metropolitan-district-council/wolverhampton","ALDI STORES LTD",16.59,"Meals on Wheels","5411","-","14/08/2020"
"Wolverhampton City Council","http://opendatacommunities.org/id/metropolitan-district-council/wolverhampton","AMZNMKTPLACE AMAZON.CO",10.76,"Business Support Unit","5999","Stationery","14/08/2020"
"Wolverhampton City Council","http://opendatacommunities.org/id/metropolitan-district-council/wolverhampton","ARGOS LTD",185.78,"LAC Transitions Team","5310","Client Allowances","13/08/2020"
"Wolverhampton City Council","http://opendatacommunities.org/id/metropolitan-district-council/wolverhampton","WWW.GDHA.COM",118.8,"Upper Pendeford Farm Childrens Home","5065","Equipment - Health and Safety","13/08/2020"
"Wolverhampton City Council","http://opendatacommunities.org/id/metropolitan-district-council/wolverhampton","COMBINED COURT",170,"LAC Team","9222","Financial Assistance In Exceptional Circ","13/08/2020"
"Wolverhampton City Council","http://opendatacommunities.org/id/metropolitan-district-council/wolverhampton","VALUE PRODUCTS LTD",472.5,"Business Support Services","5999","R4009","13/08/2020"
"Wolverhampton City Council","http://opendatacommunities.org/id/metropolitan-district-council/wolverhampton","BISON MACHINERY LTD",1684.5,"Business Support Services","5969","Equipment - Health and Safety","13/08/2020"
"Wolverhampton City Council","http://opendatacommunities.org/id/metropolitan-district-council/wolverhampton","MARKS&SPENCER PLC SACA",12.09,"Art Gallery","5411","-","13/08/2020"
"Wolverhampton City Council","http://opendatacommunities.org/id/metropolitan-district-council/wolverhampton","COMBINED COURT",170,"CIN/CP Social Work Unit - Area 7","9222","-","13/08/2020"
"Wolverhampton City Council","http://opendatacommunities.org/id/metropolitan-district-council/wolverhampton","EB  DISRUPTING EXPLOIT",16.4,"Vulnerable Young Persons Team","7399","Training Expenses","13/08/2020"
"Wolverhampton City Council","http://opendatacommunities.org/id/metropolitan-district-council/wolverhampton","AMZNMktplace",19.16,"Bradley Resource Centre","5999","Materials","13/08/2020"
"Wolverhampton City Council","http://opendatacommunities.org/id/metropolitan-district-council/wolverhampton","ENJOY WOLVERHAMPTON",101.3,"Environmental Crime and Consumer Protect","5399","Equipment - Purchase","13/08/2020"
"Wolverhampton City Council","http://opendatacommunities.org/id/metropolitan-district-council/wolverhampton","EB  ONLINE TRAINING SP",70,"Member Training","7399","Training Expenses","13/08/2020"
"Wolverhampton City Council","http://opendatacommunities.org/id/metropolitan-district-council/wolverhampton","EB  ONLINE TRAINING CH",70,"Member Training","7399","Training Expenses","13/08/2020"
"Wolverhampton City Council","http://opendatacommunities.org/id/metropolitan-district-council/wolverhampton","NoteMachine ATM",80,"LAC Transitions Team","6011","-","13/08/2020"
"Wolverhampton City Council","http://opendatacommunities.org/id/metropolitan-district-council/wolverhampton","NoteMachine ATM",200,"LAC Transitions Team","6011","-","13/08/2020"
"Wolverhampton City Council","http://opendatacommunities.org/id/metropolitan-district-council/wolverhampton","AMZNMktplace",339.8,"Strategic ICTS (ICT Serv Budget)","5999","-","13/08/2020"
"Wolverhampton City Council","http://opendatacommunities.org/id/metropolitan-district-council/wolverhampton","SCREWFIX DIRECT",10.25,"Car Parks Operational Staff","5211","Equipment - Purchase","13/08/2020"
"Wolverhampton City Council","http://opendatacommunities.org/id/metropolitan-district-council/wolverhampton","AMZNMktplace",98.17,"Audience Development","5999","R4317","13/08/2020"
"Wolverhampton City Council","http://opendatacommunities.org/id/metropolitan-district-council/wolverhampton","EB  MIND YOUR LANGUAGE",9.27,"Safeguarding Admin Resource","7399","Training Expenses","13/08/2020"
"Wolverhampton City Council","http://opendatacommunities.org/id/metropolitan-district-council/wolverhampton","W M MORRISONS.COM",171.09,"Bradley Resource Centre","5411","Provisions (Not for resale)","13/08/2020"
"Wolverhampton City Council","http://opendatacommunities.org/id/metropolitan-district-council/wolverhampton","SCREWFIX DIRECT",59.15,"Technician","5211","Protective Clothing","13/08/2020"
"Wolverhampton City Council","http://opendatacommunities.org/id/metropolitan-district-council/wolverhampton","ASDA SUPERSTORE",30.83,"LAC Transitions Team","5411","Client Allowances","13/08/2020"
"Wolverhampton City Council","http://opendatacommunities.org/id/metropolitan-district-council/wolverhampton","NoteMachine ATM",80,"LAC Transitions Team","6011","-","13/08/2020"
"Wolverhampton City Council","http://opendatacommunities.org/id/metropolitan-district-council/wolverhampton","COMMIFY UK LIMITED",75,"Employment Programmes","4814","R4317","13/08/2020"
"Wolverhampton City Council","http://opendatacommunities.org/id/metropolitan-district-council/wolverhampton","Amazon.co.uk H545G85X5",50,"Corporate Parenting","5969","Direct Work With Children","13/08/2020"
"Wolverhampton City Council","http://opendatacommunities.org/id/metropolitan-district-council/wolverhampton","ARGOS LTD",279.52,"LAC Transitions Team","5310","Client Allowances","13/08/2020"
"Wolverhampton City Council","http://opendatacommunities.org/id/metropolitan-district-council/wolverhampton","THE RANGE",14.98,"Cemeteries","5311","Equipment - Purchase","12/08/2020"
"Wolverhampton City Council","http://opendatacommunities.org/id/metropolitan-district-council/wolverhampton","HOLLYBUSH NURSERIES LT",70.81,"Cemeteries","5261","Materials","12/08/2020"
"Wolverhampton City Council","http://opendatacommunities.org/id/metropolitan-district-council/wolverhampton","GEN REGISTER OFFICE",14,"LAC Transitions Team","9399","-","12/08/2020"
"Wolverhampton City Council","http://opendatacommunities.org/id/metropolitan-district-council/wolverhampton","Central Design Ceramic",251.28,"Homeless Families","5999","Equipment - Purchase","12/08/2020"
"Wolverhampton City Council","http://opendatacommunities.org/id/metropolitan-district-council/wolverhampton","HMCOURTS-SERVICE.G",75,"Mental Health Assessment & Care Mgmt","9222","Services - Fees and Charges","12/08/2020"
"Wolverhampton City Council","http://opendatacommunities.org/id/metropolitan-district-council/wolverhampton","POSTURITE LTD",109.95,"Mental Health Assessment & Care Mgmt","7399","Equipment - Health and Safety","12/08/2020"
"Wolverhampton City Council","http://opendatacommunities.org/id/metropolitan-district-council/wolverhampton","Amazon.co.uk UI3ZU6F15",36.18,"Power2 Team","5969","Direct Work With Children","12/08/2020"
"Wolverhampton City Council","http://opendatacommunities.org/id/metropolitan-district-council/wolverhampton","AMZNMktplace",381.17,"Audience Development","5999","R4317","12/08/2020"
"Wolverhampton City Council","http://opendatacommunities.org/id/metropolitan-district-council/wolverhampton","WP-CENTRAL TAXIS L",105.5,"EIP Locality 2","4121","Grant Payments","12/08/2020"
"Wolverhampton City Council","http://opendatacommunities.org/id/metropolitan-district-council/wolverhampton","PO OLD HILL 0676",66.67,"LAC Transitions Team","6011","Client Allowances","12/08/2020"
"Wolverhampton City Council","http://opendatacommunities.org/id/metropolitan-district-council/wolverhampton","WWW.FIRST-RESCUE.CO.UK",276,"Bert Williams Leisure Centre","8299","-","12/08/2020"
"Wolverhampton City Council","http://opendatacommunities.org/id/metropolitan-district-council/wolverhampton","POUNDLAND",5,"Ernest Bold Court","5310","Provisions (Not for resale)","12/08/2020"
"Wolverhampton City Council","http://opendatacommunities.org/id/metropolitan-district-council/wolverhampton","A2BGo Carz",6.2,"Youth Offending Team","4121","Client Transport","12/08/2020"
"Wolverhampton City Council","http://opendatacommunities.org/id/metropolitan-district-council/wolverhampton","A2BGo Carz",6.5,"Youth Offending Team","4121","Client Transport","12/08/2020"
"Wolverhampton City Council","http://opendatacommunities.org/id/metropolitan-district-council/wolverhampton","A2BGo Carz",7,"Youth Offending Team","4121","Client Transport","12/08/2020"
"Wolverhampton City Council","http://opendatacommunities.org/id/metropolitan-district-council/wolverhampton","A2BGo Carz",6.5,"Youth Offending Team","4121","Client Transport","12/08/2020"
"Wolverhampton City Council","http://opendatacommunities.org/id/metropolitan-district-council/wolverhampton","A2BGo Carz",6.2,"Youth Offending Team","4121","Client Transport","12/08/2020"
"Wolverhampton City Council","http://opendatacommunities.org/id/metropolitan-district-council/wolverhampton","A2BGo Carz",7,"Youth Offending Team","4121","Client Transport","12/08/2020"
"Wolverhampton City Council","http://opendatacommunities.org/id/metropolitan-district-council/wolverhampton","Avanti West Coast",172.5,"Looked After Team 2","4112","Client Transport","12/08/2020"
"Wolverhampton City Council","http://opendatacommunities.org/id/metropolitan-district-council/wolverhampton","FREEPIK & FLATICON",55.64,"Business Support Services","7221","R4535","12/08/2020"
"Wolverhampton City Council","http://opendatacommunities.org/id/metropolitan-district-council/wolverhampton","HUGHES",465,"LAC Transitions Accommodation","5732","Client Allowances","12/08/2020"
"Wolverhampton City Council","http://opendatacommunities.org/id/metropolitan-district-council/wolverhampton","HUGHES",465,"LAC Transitions Accommodation","5732","Client Allowances","12/08/2020"
"Wolverhampton City Council","http://opendatacommunities.org/id/metropolitan-district-council/wolverhampton","HUGHES",465,"LAC Transitions Accommodation","5732","Client Allowances","12/08/2020"
"Wolverhampton City Council","http://opendatacommunities.org/id/metropolitan-district-council/wolverhampton","POST OFFICE COUNTER",7.8,"MASH","9402","Comms - Postage","12/08/2020"
"Wolverhampton City Council","http://opendatacommunities.org/id/metropolitan-district-council/wolverhampton","COMPANY CARDS LTD",188.5,"Technical Support","2741","Materials","12/08/2020"
"Wolverhampton City Council","http://opendatacommunities.org/id/metropolitan-district-council/wolverhampton","COMPANY CARDS LTD",76.75,"Technical Support","2741","Materials","12/08/2020"
"Wolverhampton City Council","http://opendatacommunities.org/id/metropolitan-district-council/wolverhampton","WWW.ASTONANDFINCHER.CO",65.19,"Food and Health & Safety","7230","Equipment - Purchase","12/08/2020"
"Wolverhampton City Council","http://opendatacommunities.org/id/metropolitan-district-council/wolverhampton","KITE ON LINE TERMINAL",47.41,"Business Support Unit","5085","Stationery","12/08/2020"
"Wolverhampton City Council","http://opendatacommunities.org/id/metropolitan-district-council/wolverhampton","E C STRAITON",150.86,"Northicote Farm","0742","Professional fees","12/08/2020"
"Wolverhampton City Council","http://opendatacommunities.org/id/metropolitan-district-council/wolverhampton","W M MORRISONS.COM",38.32,"Ernest Bold Court","5411","Provisions (Not for resale)","11/08/2020"
"Wolverhampton City Council","http://opendatacommunities.org/id/metropolitan-district-council/wolverhampton","SumUp   Colin caddick",116.46,"LAC Transitions Accommodation","5399","Accommodation Costs","11/08/2020"
"Wolverhampton City Council","http://opendatacommunities.org/id/metropolitan-district-council/wolverhampton","AMZNMktplace",21.24,"Strategic ICTS (ICT Serv Budget)","5999","Computing - Purchase of Hardware","11/08/2020"
"Wolverhampton City Council","http://opendatacommunities.org/id/metropolitan-district-council/wolverhampton","AMZNMktplace",19.47,"Audience Development","5999","R4317","11/08/2020"
"Wolverhampton City Council","http://opendatacommunities.org/id/metropolitan-district-council/wolverhampton","GOOGLE  ADS7951535462",350,"Headstart - Young People Engagement","7311","R4317","11/08/2020"
"Wolverhampton City Council","http://opendatacommunities.org/id/metropolitan-district-council/wolverhampton","AMZNMktplace",125.32,"Audience Development","5999","R4317","11/08/2020"
"Wolverhampton City Council","http://opendatacommunities.org/id/metropolitan-district-council/wolverhampton","AMZNMktplace",125.31,"Audience Development","5999","R4317","11/08/2020"
"Wolverhampton City Council","http://opendatacommunities.org/id/metropolitan-district-council/wolverhampton","AMZNMktplace",43.37,"Audience Development","5999","R4317","11/08/2020"
"Wolverhampton City Council","http://opendatacommunities.org/id/metropolitan-district-council/wolverhampton","GOOGLE  ADS9680351324",500,"Communications & Marketing - General","7372","R4317","11/08/2020"
"Wolverhampton City Council","http://opendatacommunities.org/id/metropolitan-district-council/wolverhampton","WWW.JP-UK.CO.UK",906.8,"Collections & Conservation","5943","Equipment - Purchase","11/08/2020"
"Wolverhampton City Council","http://opendatacommunities.org/id/metropolitan-district-council/wolverhampton","JUST PROJECTORS",790,"Collections & Conservation","5044","Equipment - Purchase","11/08/2020"
"Wolverhampton City Council","http://opendatacommunities.org/id/metropolitan-district-council/wolverhampton","Amazon.co.uk 5M1KL78P5",6.56,"Citizenship, Language & Learning","5969","Books","11/08/2020"
"Wolverhampton City Council","http://opendatacommunities.org/id/metropolitan-district-council/wolverhampton","PREMIER INN",-25.71,"Regional Adoption Agency","3811","Accommodation Costs","11/08/2020"
"Wolverhampton City Council","http://opendatacommunities.org/id/metropolitan-district-council/wolverhampton","HIRE STATION-ONE CAL",246.62,"Bert Williams Leisure Centre","7394","-","11/08/2020"
"Wolverhampton City Council","http://opendatacommunities.org/id/metropolitan-district-council/wolverhampton","WHOLESALECOFFEECO",109.99,"Bert Williams Leisure Centre","5399","-","11/08/2020"
"Wolverhampton City Council","http://opendatacommunities.org/id/metropolitan-district-council/wolverhampton","RESPONSTER PLUS PLAN",15.02,"City Direct","5734","Computing - Purchase of Software","11/08/2020"
"Wolverhampton City Council","http://opendatacommunities.org/id/metropolitan-district-council/wolverhampton","B&M RETAIL LTD",19.98,"LAC Transitions Team","5399","Provisions (Not for resale)","11/08/2020"
"Wolverhampton City Council","http://opendatacommunities.org/id/metropolitan-district-council/wolverhampton","A2BGo Carz",10.8,"Youth Offending Team","4121","Client Transport","11/08/2020"
"Wolverhampton City Council","http://opendatacommunities.org/id/metropolitan-district-council/wolverhampton","A2BGo Carz",10.8,"Youth Offending Team","4121","Client Transport","11/08/2020"
"Wolverhampton City Council","http://opendatacommunities.org/id/metropolitan-district-council/wolverhampton","ASDA GROCERIES ONLINE",-0.86,"Upper Pendeford Farm Childrens Home","5411","Provisions (Not for resale)","11/08/2020"
"Wolverhampton City Council","http://opendatacommunities.org/id/metropolitan-district-council/wolverhampton","ASDA GROCERIES ONLINE",188.28,"Upper Pendeford Farm Childrens Home","5411","Provisions (Not for resale)","11/08/2020"
"Wolverhampton City Council","http://opendatacommunities.org/id/metropolitan-district-council/wolverhampton","DC PAYMENTS",420,"Looked After Team 2","6011","Financial Assistance In Exceptional Circ","11/08/2020"
"Wolverhampton City Council","http://opendatacommunities.org/id/metropolitan-district-council/wolverhampton","CCS Brookfleet Cars",12,"CIN/CP Social Work Unit - Area 8","4121","Client Transport","11/08/2020"
"Wolverhampton City Council","http://opendatacommunities.org/id/metropolitan-district-council/wolverhampton","ASDA GROCERIES ONLINE",229.78,"Duke Street Bungalows","5411","Provisions (Not for resale)","11/08/2020"
"Wolverhampton City Council","http://opendatacommunities.org/id/metropolitan-district-council/wolverhampton","WP-CENTRAL TAXIS L",64.67,"EIP Locality 3","4121","Grant Payments","11/08/2020"
"Wolverhampton City Council","http://opendatacommunities.org/id/metropolitan-district-council/wolverhampton","B & Q 1243",6.04,"Learning Disabilities Management","5200","Equipment - Purchase","11/08/2020"
"Wolverhampton City Council","http://opendatacommunities.org/id/metropolitan-district-council/wolverhampton","POST OFFICE COUNTER",6.7,"Fleet Management","9402","Comms - Postage","11/08/2020"
"Wolverhampton City Council","http://opendatacommunities.org/id/metropolitan-district-council/wolverhampton","CITY OF WOLVERHAMPTON",27,"Centralised External Legal Costs","9399","Stationery","11/08/2020"
"Wolverhampton City Council","http://opendatacommunities.org/id/metropolitan-district-council/wolverhampton","PAYPAL  HYPERDRUGPH",45.32,"Northicote Farm","5995","Equipment - Purchase","11/08/2020"
"Wolverhampton City Council","http://opendatacommunities.org/id/metropolitan-district-council/wolverhampton","SCREWFIX DIRECT",63.9,"Cemeteries","5200","Materials","10/08/2020"
"Wolverhampton City Council","http://opendatacommunities.org/id/metropolitan-district-council/wolverhampton","ALBRIGHTON GARDEN CENT",108.24,"Cemeteries","5261","Materials","10/08/2020"
"Wolverhampton City Council","http://opendatacommunities.org/id/metropolitan-district-council/wolverhampton","ALBRIGHTON GARDEN CENT",124.99,"Cemeteries","5261","Materials","10/08/2020"
"Wolverhampton City Council","http://opendatacommunities.org/id/metropolitan-district-council/wolverhampton","NATIONWIDE",80,"LAC Transitions Team","6011","Independant Living Allowance","10/08/2020"
"Wolverhampton City Council","http://opendatacommunities.org/id/metropolitan-district-council/wolverhampton","AMZNMktplace",225.94,"Older People Provider Management","5999","Equipment - Purchase","10/08/2020"
"Wolverhampton City Council","http://opendatacommunities.org/id/metropolitan-district-council/wolverhampton","GEN REGISTER OFFICE",14,"Lac Transitions","9399","Services - Supplies & Services to users","10/08/2020"
"Wolverhampton City Council","http://opendatacommunities.org/id/metropolitan-district-council/wolverhampton","GEN REGISTER OFFICE",14,"Lac Transitions","9399","Services - Supplies & Services to users","10/08/2020"
"Wolverhampton City Council","http://opendatacommunities.org/id/metropolitan-district-council/wolverhampton","SCREWFIX DIRECT",11.66,"Car Parks Operational Staff","5200","Equipment - Purchase","10/08/2020"
"Wolverhampton City Council","http://opendatacommunities.org/id/metropolitan-district-council/wolverhampton","WILKO RETAIL LIMITED",6.42,"Car Parks Operational Staff","5399","Equipment - Purchase","10/08/2020"
"Wolverhampton City Council","http://opendatacommunities.org/id/metropolitan-district-council/wolverhampton","ARGOS LTD",29.99,"Key to Inspiration","5310","Comms - Mobile Telephones","10/08/2020"
"Wolverhampton City Council","http://opendatacommunities.org/id/metropolitan-district-council/wolverhampton","HERON FOODS LTD",12.18,"Bradley Resource Centre","5499","Provisions (Not for resale)","10/08/2020"
"Wolverhampton City Council","http://opendatacommunities.org/id/metropolitan-district-council/wolverhampton","SECURITYSAFETYPRODUCTS",54.35,"Technician","7393","R4009","10/08/2020"
"Wolverhampton City Council","http://opendatacommunities.org/id/metropolitan-district-council/wolverhampton","WWW.BRISTOWSUTOR.C",0,"Parking Enforcement","9399","VAT","10/08/2020"
"Wolverhampton City Council","http://opendatacommunities.org/id/metropolitan-district-council/wolverhampton","WWW.BRISTOWSUTOR.C",0,"Revenues","9399","VAT","10/08/2020"
"Wolverhampton City Council","http://opendatacommunities.org/id/metropolitan-district-council/wolverhampton","PAYPAL  THIERRY EBAY T",84.99,"Hickman Avenue Depot","5999","Equipment - Purchase","10/08/2020"
"Wolverhampton City Council","http://opendatacommunities.org/id/metropolitan-district-council/wolverhampton","IKEA LTD 142 BIRMINGHA",40,"LAC Transitions Accommodation","5712","Accommodation Costs","10/08/2020"
"Wolverhampton City Council","http://opendatacommunities.org/id/metropolitan-district-council/wolverhampton","UTILITA ENERGY LIMITED",9.52,"LAC Transitions Accommodation","4900","Accommodation Costs","10/08/2020"
"Wolverhampton City Council","http://opendatacommunities.org/id/metropolitan-district-council/wolverhampton","UTILITA ENERGY LIMITED",23.65,"LAC Transitions Accommodation","4900","Accommodation Costs","10/08/2020"
"Wolverhampton City Council","http://opendatacommunities.org/id/metropolitan-district-council/wolverhampton","ARGOS LTD",103.94,"Bradley Resource Centre","5310","Equipment - Purchase","10/08/2020"
"Wolverhampton City Council","http://opendatacommunities.org/id/metropolitan-district-council/wolverhampton","ICELAND",5.96,"LAC Transitions Team","5411","Client Allowances","10/08/2020"
"Wolverhampton City Council","http://opendatacommunities.org/id/metropolitan-district-council/wolverhampton","PREMIER INN",60.47,"Regional Adoption Agency","3811","Accommodation Costs","10/08/2020"
"Wolverhampton City Council","http://opendatacommunities.org/id/metropolitan-district-council/wolverhampton","WP-CENTRAL TAXIS L",107.9,"EIP Locality 4","4121","Grant Payments","10/08/2020"
"Wolverhampton City Council","http://opendatacommunities.org/id/metropolitan-district-council/wolverhampton","WM MORRISONS STORE",1.54,"Ernest Bold Court","5411","Provisions (Not for resale)","10/08/2020"
"Wolverhampton City Council","http://opendatacommunities.org/id/metropolitan-district-council/wolverhampton","BARCLAYS",80,"LAC Transitions Team","6011","Provisions (Not for resale)","10/08/2020"
"Wolverhampton City Council","http://opendatacommunities.org/id/metropolitan-district-council/wolverhampton","ARGOS LTD",66.63,"LAC Transitions Team","5310","Client Allowances","10/08/2020"
"Wolverhampton City Council","http://opendatacommunities.org/id/metropolitan-district-council/wolverhampton","ARGOS LTD",310.77,"LAC Transitions Team","5310","Client Allowances","10/08/2020"
"Wolverhampton City Council","http://opendatacommunities.org/id/metropolitan-district-council/wolverhampton","APPLE.COM/BILL",0.79,"Managing Director","5735","Computing - Purchase of Software","10/08/2020"
"Wolverhampton City Council","http://opendatacommunities.org/id/metropolitan-district-council/wolverhampton","AMZNMktplace",82.24,"LAC Transitions Accommodation","5999","Accommodation Costs","10/08/2020"
"Wolverhampton City Council","http://opendatacommunities.org/id/metropolitan-district-council/wolverhampton","AMZNMktplace",41.36,"LAC Transitions Accommodation","5999","Accommodation Costs","10/08/2020"
"Wolverhampton City Council","http://opendatacommunities.org/id/metropolitan-district-council/wolverhampton","ASDA GROCERIES ONLINE",-0.61,"Duke Street Bungalows","5411","Provisions (Not for resale)","10/08/2020"
"Wolverhampton City Council","http://opendatacommunities.org/id/metropolitan-district-council/wolverhampton","ASDA GROCERIES ONLINE",197.95,"Duke Street Bungalows","5411","Provisions (Not for resale)","10/08/2020"
"Wolverhampton City Council","http://opendatacommunities.org/id/metropolitan-district-council/wolverhampton","AMZNMktplace",29.57,"Ernest Bold Court","5999","Equipment - Purchase","10/08/2020"
"Wolverhampton City Council","http://opendatacommunities.org/id/metropolitan-district-council/wolverhampton","AMZNMktplace",49.57,"Ernest Bold Court","5999","Equipment - Purchase","10/08/2020"
"Wolverhampton City Council","http://opendatacommunities.org/id/metropolitan-district-council/wolverhampton","TFM FARM   COUNTRY",147.61,"Northicote Farm","0763","Provisions (Not for resale)","10/08/2020"
"Wolverhampton City Council","http://opendatacommunities.org/id/metropolitan-district-council/wolverhampton","BUXTONS LTD",18.8,"Northicote Farm","5261","Materials","10/08/2020"
"Wolverhampton City Council","http://opendatacommunities.org/id/metropolitan-district-council/wolverhampton","WWW.VOUCHEREXPRESS.CO.",100,"Pupil Premium","5947","Direct Work With Children","07/08/2020"
"Wolverhampton City Council","http://opendatacommunities.org/id/metropolitan-district-council/wolverhampton","WWW.VOUCHEREXPRESS.CO.",105.5,"Pupil Premium","5947","Direct Work With Children","07/08/2020"
"Wolverhampton City Council","http://opendatacommunities.org/id/metropolitan-district-council/wolverhampton","WWW.VOUCHEREXPRESS.CO.",100,"Pupil Premium","5947","Direct Work With Children","07/08/2020"
"Wolverhampton City Council","http://opendatacommunities.org/id/metropolitan-district-council/wolverhampton","Amazon.co.uk PB5UE5PF5",40,"Corporate Parenting","5969","Direct Work With Children","07/08/2020"
"Wolverhampton City Council","http://opendatacommunities.org/id/metropolitan-district-council/wolverhampton","COMPANIES HOUSE",13,"Legal Services","9399","-","07/08/2020"
"Wolverhampton City Council","http://opendatacommunities.org/id/metropolitan-district-council/wolverhampton","PEAK ACTIVITY SERVICES",99.95,"Upper Pendeford Farm Childrens Home","8299","Educ Trips, Holidays, Outings, Activity","07/08/2020"
"Wolverhampton City Council","http://opendatacommunities.org/id/metropolitan-district-council/wolverhampton","WILKO.COM",36.75,"EIP Locality 1","5399","Grant Payments","07/08/2020"
"Wolverhampton City Council","http://opendatacommunities.org/id/metropolitan-district-council/wolverhampton","CardtronicsUK",30,"LAC Transitions Team","6011","Client Allowances","07/08/2020"
"Wolverhampton City Council","http://opendatacommunities.org/id/metropolitan-district-council/wolverhampton","THE RANGE",48.27,"Cemeteries","5311","Materials","07/08/2020"
"Wolverhampton City Council","http://opendatacommunities.org/id/metropolitan-district-council/wolverhampton","CROMWELL WEST MIDLANDS",1051.15,"Waste Coll & Recycling Serv General","5085","-","07/08/2020"
"Wolverhampton City Council","http://opendatacommunities.org/id/metropolitan-district-council/wolverhampton","ROYAL BK OF SCOTLAND",240,"Power2 Team","6011","Direct Work With Children","07/08/2020"
"Wolverhampton City Council","http://opendatacommunities.org/id/metropolitan-district-council/wolverhampton","ROYAL BK OF SCOTLAND",240,"Power2 Team","6011","Direct Work With Children","07/08/2020"
"Wolverhampton City Council","http://opendatacommunities.org/id/metropolitan-district-council/wolverhampton","NAMESCO",34.99,"Communications & Marketing - General","4816","Subscriptions","07/08/2020"
"Wolverhampton City Council","http://opendatacommunities.org/id/metropolitan-district-council/wolverhampton","RYMAN",12.49,"Phoebe Cummings - ACE NPO WAG","5943","Equipment - Purchase","07/08/2020"
"Wolverhampton City Council","http://opendatacommunities.org/id/metropolitan-district-council/wolverhampton","WM MORRISONS STORE",140.36,"Bradley Resource Centre","5411","Provisions (Not for resale)","07/08/2020"
"Wolverhampton City Council","http://opendatacommunities.org/id/metropolitan-district-council/wolverhampton","ARGOS LTD",53.28,"LAC Transitions Team","5310","Client Allowances","07/08/2020"
"Wolverhampton City Council","http://opendatacommunities.org/id/metropolitan-district-council/wolverhampton","WILKO.COM",51.67,"LAC Transitions Team","5399","Client Allowances","07/08/2020"
"Wolverhampton City Council","http://opendatacommunities.org/id/metropolitan-district-council/wolverhampton","ASDA SUPERSTORE",46.02,"Key to Inspiration","5411","Provisions (Not for resale)","07/08/2020"
"Wolverhampton City Council","http://opendatacommunities.org/id/metropolitan-district-council/wolverhampton","ASDA SUPERSTORE",194.22,"Key to Inspiration","5411","Provisions (Not for resale)","07/08/2020"
"Wolverhampton City Council","http://opendatacommunities.org/id/metropolitan-district-council/wolverhampton","NoteMachine ATM",160,"LAC Transitions Team","6011","Independant Living Allowance","07/08/2020"
"Wolverhampton City Council","http://opendatacommunities.org/id/metropolitan-district-council/wolverhampton","LIDL GB BILSTON",17.64,"LAC Transitions Accommodation","5411","Accommodation Costs","07/08/2020"
"Wolverhampton City Council","http://opendatacommunities.org/id/metropolitan-district-council/wolverhampton","CITY OF WOLVERHAMPTON",11,"Court Team","9399","Section 17","07/08/2020"
"Wolverhampton City Council","http://opendatacommunities.org/id/metropolitan-district-council/wolverhampton","POST OFFICE COUNTER",27.36,"Bradley Resource Centre","9402","Comms - Postage","07/08/2020"
"Wolverhampton City Council","http://opendatacommunities.org/id/metropolitan-district-council/wolverhampton","PREMIER INN",60.47,"Regional Adoption Agency","3811","Accommodation Costs","07/08/2020"
"Wolverhampton City Council","http://opendatacommunities.org/id/metropolitan-district-council/wolverhampton","AMZNMktplace",16.66,"Regional Adoption Agency","5999","Stationery","07/08/2020"
"Wolverhampton City Council","http://opendatacommunities.org/id/metropolitan-district-council/wolverhampton","THE VOUCHER MARKET LTD",100,"Pupil Premium","5999","Direct Work With Children","07/08/2020"
"Wolverhampton City Council","http://opendatacommunities.org/id/metropolitan-district-council/wolverhampton","ENJOY WOLVERHAMPTON",105,"SWP � Cohesion Activities","5399","Provisions (Not for resale)","06/08/2020"
"Wolverhampton City Council","http://opendatacommunities.org/id/metropolitan-district-council/wolverhampton","AMZNMktplace",84.95,"Strategic ICTS (ICT Serv Budget)","5999","-","06/08/2020"
"Wolverhampton City Council","http://opendatacommunities.org/id/metropolitan-district-council/wolverhampton","GOOGLE  ADS7951535462",200,"Headstart - Young People Engagement","7311","R4317","06/08/2020"
"Wolverhampton City Council","http://opendatacommunities.org/id/metropolitan-district-council/wolverhampton","CITY OF WOLVERHAMPTON",11,"Court of Protection, Funerals Prot Prop","9399","Services - Supplies & Services to users","06/08/2020"
"Wolverhampton City Council","http://opendatacommunities.org/id/metropolitan-district-council/wolverhampton","CURRYS ONLINE",39.99,"LAC Transitions Team","5732","-","06/08/2020"
"Wolverhampton City Council","http://opendatacommunities.org/id/metropolitan-district-council/wolverhampton","Amazon.co.uk FE15I37L5",2.26,"Art Gallery Shop","5969","Provisions (Resale)","06/08/2020"
"Wolverhampton City Council","http://opendatacommunities.org/id/metropolitan-district-council/wolverhampton","Amazon.co.uk UD9VU4EL5",20.32,"Art Gallery Shop","5969","Provisions (Resale)","06/08/2020"
"Wolverhampton City Council","http://opendatacommunities.org/id/metropolitan-district-council/wolverhampton","WM MORRISONS STORE",78.45,"Bradley Resource Centre","5411","Provisions (Not for resale)","06/08/2020"
"Wolverhampton City Council","http://opendatacommunities.org/id/metropolitan-district-council/wolverhampton","Amazon.co.uk LV92D8ZC5",11.92,"Citizenship, Language & Learning","5969","Books","06/08/2020"
"Wolverhampton City Council","http://opendatacommunities.org/id/metropolitan-district-council/wolverhampton","AMZNMKTPLACE AMAZON.CO",24.96,"Bradley Resource Centre","5999","Provisions (Not for resale)","06/08/2020"
"Wolverhampton City Council","http://opendatacommunities.org/id/metropolitan-district-council/wolverhampton","BARCLAYS",25,"LAC Transitions Team","6011","Client Allowances","06/08/2020"
"Wolverhampton City Council","http://opendatacommunities.org/id/metropolitan-district-council/wolverhampton","COMBINED COURT",170,"LAC Team","9222","Financial Assistance In Exceptional Circ","06/08/2020"
"Wolverhampton City Council","http://opendatacommunities.org/id/metropolitan-district-council/wolverhampton","AMZNMktplace",24.32,"Creative Studies Delivery Area","5999","Equipment - Purchase","06/08/2020"
"Wolverhampton City Council","http://opendatacommunities.org/id/metropolitan-district-council/wolverhampton","AMZNMktplace",16.63,"Creative Studies Delivery Area","5999","Equipment - Purchase","06/08/2020"
"Wolverhampton City Council","http://opendatacommunities.org/id/metropolitan-district-council/wolverhampton","BARCLAYS",200,"LAC Transitions Accommodation","6011","Client Allowances","06/08/2020"
"Wolverhampton City Council","http://opendatacommunities.org/id/metropolitan-district-council/wolverhampton","WWW.QA.COM",350,"Workforce Development","8299","Training Expenses","06/08/2020"
"Wolverhampton City Council","http://opendatacommunities.org/id/metropolitan-district-council/wolverhampton","LOYD 37 CHURCH STREET",200,"Duke Street Bungalows","6011","Provisions (Not for resale)","06/08/2020"
"Wolverhampton City Council","http://opendatacommunities.org/id/metropolitan-district-council/wolverhampton","WP-CENTRAL TAXIS L",5,"CIN/CP Social Work Unit - Area 3","4121","Client Transport","06/08/2020"
"Wolverhampton City Council","http://opendatacommunities.org/id/metropolitan-district-council/wolverhampton","E C STRAITON",26.25,"Northicote Farm","0742","Professional fees","06/08/2020"
"Wolverhampton City Council","http://opendatacommunities.org/id/metropolitan-district-council/wolverhampton","WM MORRISONS STORE",104.28,"Bradley Resource Centre","5411","Provisions (Not for resale)","05/08/2020"
"Wolverhampton City Council","http://opendatacommunities.org/id/metropolitan-district-council/wolverhampton","AMZNMktplace",21.24,"Bradley Resource Centre","5999","Equipment - Purchase","05/08/2020"
"Wolverhampton City Council","http://opendatacommunities.org/id/metropolitan-district-council/wolverhampton","AMZNMKTPLACE AMAZON.CO",30.4,"Bradley Resource Centre","5999","Equipment - Purchase","05/08/2020"
"Wolverhampton City Council","http://opendatacommunities.org/id/metropolitan-district-council/wolverhampton","REPLACEMENT KEYS LTD",4.92,"Bradley Resource Centre","5399","Equipment - Purchase","05/08/2020"
"Wolverhampton City Council","http://opendatacommunities.org/id/metropolitan-district-council/wolverhampton","CURRYS ONLINE",432.5,"Fostering Team & Allowances","5732","Equipment - Purchase","05/08/2020"
"Wolverhampton City Council","http://opendatacommunities.org/id/metropolitan-district-council/wolverhampton","PREMIER INN",46.66,"Fostering Team","3811","Accommodation Costs","05/08/2020"
"Wolverhampton City Council","http://opendatacommunities.org/id/metropolitan-district-council/wolverhampton","AMZNMktplace",12.47,"City Direct","5999","Equipment - Purchase","05/08/2020"
"Wolverhampton City Council","http://opendatacommunities.org/id/metropolitan-district-council/wolverhampton","AMZNMKTPLACE AMAZON.CO",28.19,"Upper Pendeford Farm Childrens Home","5999","Provisions (Not for resale)","05/08/2020"
"Wolverhampton City Council","http://opendatacommunities.org/id/metropolitan-district-council/wolverhampton","AMZNMKTPLACE AMAZON.CO",23.29,"Ernest Bold Court","5999","Cleaning Supplies and Materials","05/08/2020"
"Wolverhampton City Council","http://opendatacommunities.org/id/metropolitan-district-council/wolverhampton","ONEBELOW",4,"Wolverhampton Indoor and Open Market","5411","R4007","05/08/2020"
"Wolverhampton City Council","http://opendatacommunities.org/id/metropolitan-district-council/wolverhampton","WILKO RETAIL LIMITED",2.75,"Wolverhampton Indoor and Open Market","5399","Stationery","05/08/2020"
"Wolverhampton City Council","http://opendatacommunities.org/id/metropolitan-district-council/wolverhampton","TIPPERS WOLVERHAMPTON",25.01,"Cleaning of Buildings - General","5072","-","05/08/2020"
"Wolverhampton City Council","http://opendatacommunities.org/id/metropolitan-district-council/wolverhampton","123 REG LTD",11.99,"Technical Support","4816","Computing - Purchase of Software","05/08/2020"
"Wolverhampton City Council","http://opendatacommunities.org/id/metropolitan-district-council/wolverhampton","ALDI STORES LTD",12.97,"Meals on Wheels","5411","-","05/08/2020"
"Wolverhampton City Council","http://opendatacommunities.org/id/metropolitan-district-council/wolverhampton","WWW.QA.COM",350,"Workforce Development","8299","Training Expenses","05/08/2020"
"Wolverhampton City Council","http://opendatacommunities.org/id/metropolitan-district-council/wolverhampton","CUMMINGS BROTHERS LOCK",2.5,"Ernest Bold Court","7399","Equipment - Purchase","05/08/2020"
"Wolverhampton City Council","http://opendatacommunities.org/id/metropolitan-district-council/wolverhampton","AMZNMKTPLACE AMAZON.CO",-200,"COVID 19 - Waste Service","5999","Equipment - Purchase","05/08/2020"
"Wolverhampton City Council","http://opendatacommunities.org/id/metropolitan-district-council/wolverhampton","HORNERSHEARING.COM",62.05,"Northicote Farm","5251","Professional fees","05/08/2020"
"Wolverhampton City Council","http://opendatacommunities.org/id/metropolitan-district-council/wolverhampton","AMZNMktplace",15.71,"Duke Street Bungalows","5999","R4010","04/08/2020"
"Wolverhampton City Council","http://opendatacommunities.org/id/metropolitan-district-council/wolverhampton","AMZNMKTPLACE AMAZON.CO",17.57,"Landscape","5999","Equipment - Purchase","04/08/2020"
"Wolverhampton City Council","http://opendatacommunities.org/id/metropolitan-district-council/wolverhampton","W M MORRISONS.COM",44.91,"Ernest Bold Court","5411","Provisions (Not for resale)","04/08/2020"
"Wolverhampton City Council","http://opendatacommunities.org/id/metropolitan-district-council/wolverhampton","AMZNMKTPLACE AMAZON.CO",32.94,"Waste Coll & Recycling Serv General","5999","-","04/08/2020"
"Wolverhampton City Council","http://opendatacommunities.org/id/metropolitan-district-council/wolverhampton","JOHN THE HANDYMAN",145.75,"Bradley Resource Centre","5251","Materials","04/08/2020"
"Wolverhampton City Council","http://opendatacommunities.org/id/metropolitan-district-council/wolverhampton","WWW.JA.NET",42,"ICT Services","8699","Subscriptions","04/08/2020"
"Wolverhampton City Council","http://opendatacommunities.org/id/metropolitan-district-council/wolverhampton","PAYPAL  ANOVATECHNO",480,"Technician","5732","Materials","04/08/2020"
"Wolverhampton City Council","http://opendatacommunities.org/id/metropolitan-district-council/wolverhampton","WF  WAYFAIR 3388982684",299.98,"LAC Transitions Accommodation","5712","Client Allowances","04/08/2020"
"Wolverhampton City Council","http://opendatacommunities.org/id/metropolitan-district-council/wolverhampton","CITY OF WOLVERHAMPTON",16,"Court Team","9399","Section 17","04/08/2020"
"Wolverhampton City Council","http://opendatacommunities.org/id/metropolitan-district-council/wolverhampton","PO OLD HILL 0676",66.67,"LAC Transitions Team","6011","Client Allowances","04/08/2020"
"Wolverhampton City Council","http://opendatacommunities.org/id/metropolitan-district-council/wolverhampton","ARGOS LTD",41.67,"Regional Adoption Agency","5310","Stationery","04/08/2020"
"Wolverhampton City Council","http://opendatacommunities.org/id/metropolitan-district-council/wolverhampton","INTERFLORA BRITISH UNI",39.17,"Fostering Team & Allowances","5992","Gratuities","04/08/2020"
"Wolverhampton City Council","http://opendatacommunities.org/id/metropolitan-district-council/wolverhampton","ROYAL MAIL ONLINE SHOP",179,"Fostering Team & Allowances","9402","Comms - Postage","04/08/2020"
"Wolverhampton City Council","http://opendatacommunities.org/id/metropolitan-district-council/wolverhampton","thetrainline.com",42.33,"Fostering Team","4112","Public Transport","04/08/2020"
"Wolverhampton City Council","http://opendatacommunities.org/id/metropolitan-district-council/wolverhampton","XPRESS COFFEE SERVICES",624.5,"Bert Williams Leisure Centre","5499","-","04/08/2020"
"Wolverhampton City Council","http://opendatacommunities.org/id/metropolitan-district-council/wolverhampton","XPRESS COFFEE SERVICES",624.5,"Bert Williams Leisure Centre","5499","-","04/08/2020"
"Wolverhampton City Council","http://opendatacommunities.org/id/metropolitan-district-council/wolverhampton","A2BGo Carz",29,"Youth Offending Team","4121","Public Transport","04/08/2020"
"Wolverhampton City Council","http://opendatacommunities.org/id/metropolitan-district-council/wolverhampton","ASDA GROCERIES ONLINE",-0.88,"Upper Pendeford Farm Childrens Home","5411","Provisions (Not for resale)","04/08/2020"
"Wolverhampton City Council","http://opendatacommunities.org/id/metropolitan-district-council/wolverhampton","ASDA GROCERIES ONLINE",175.89,"Upper Pendeford Farm Childrens Home","5411","Provisions (Not for resale)","04/08/2020"
"Wolverhampton City Council","http://opendatacommunities.org/id/metropolitan-district-council/wolverhampton","CONNECT PUBLICATIONS L",7280,"COVID 19 - Personal Protective equipment","7311","Equipment - Health and Safety","04/08/2020"
"Wolverhampton City Council","http://opendatacommunities.org/id/metropolitan-district-council/wolverhampton","NATWEST BANK",200,"Duke Street Bungalows","6011","Provisions (Not for resale)","04/08/2020"
"Wolverhampton City Council","http://opendatacommunities.org/id/metropolitan-district-council/wolverhampton","FACEBK 4APXWV6AR2",30.93,"Communications & Marketing - General","7311","R4317","03/08/2020"
"Wolverhampton City Council","http://opendatacommunities.org/id/metropolitan-district-council/wolverhampton","Amazon.co.uk XC7FT81B5",123.36,"EIP Locality 8","5969","Equipment - Purchase","03/08/2020"
"Wolverhampton City Council","http://opendatacommunities.org/id/metropolitan-district-council/wolverhampton","NoteMachine ATM",20,"LAC Transitions Team","6011","Accommodation Costs","03/08/2020"
"Wolverhampton City Council","http://opendatacommunities.org/id/metropolitan-district-council/wolverhampton","QUEENSWAY INTERIOR",207.5,"LAC Transitions Team","5712","Client Allowances","03/08/2020"
"Wolverhampton City Council","http://opendatacommunities.org/id/metropolitan-district-council/wolverhampton","AMZNMktplace",30.86,"Key to Inspiration","5999","Equipment - Purchase","03/08/2020"
"Wolverhampton City Council","http://opendatacommunities.org/id/metropolitan-district-council/wolverhampton","WM MORRISONS STORE",120.77,"Bradley Resource Centre","5411","Provisions (Not for resale)","03/08/2020"
"Wolverhampton City Council","http://opendatacommunities.org/id/metropolitan-district-council/wolverhampton","MOLINEUX SERVICE S",35.35,"Technician","5541","Training Expenses","03/08/2020"
"Wolverhampton City Council","http://opendatacommunities.org/id/metropolitan-district-council/wolverhampton","Amazon.co.uk GD7LV37T5",8.84,"Citizenship, Language & Learning","5969","Books","03/08/2020"
"Wolverhampton City Council","http://opendatacommunities.org/id/metropolitan-district-council/wolverhampton","W M MORRISONS.COM",-4.25,"Ernest Bold Court","5411","Provisions (Not for resale)","03/08/2020"
"Wolverhampton City Council","http://opendatacommunities.org/id/metropolitan-district-council/wolverhampton","PAYPAL  PREMIERTATT EB",-25.98,"Bradley Resource Centre","5331","Cleaning Supplies and Materials","03/08/2020"
"Wolverhampton City Council","http://opendatacommunities.org/id/metropolitan-district-council/wolverhampton","WP-CENTRAL TAXIS L",80,"EIP Locality 2","4121","Grant Payments","03/08/2020"
"Wolverhampton City Council","http://opendatacommunities.org/id/metropolitan-district-council/wolverhampton","WP-CENTRAL TAXIS L",205.8,"EIP Locality 4","4121","Grant Payments","03/08/2020"
"Wolverhampton City Council","http://opendatacommunities.org/id/metropolitan-district-council/wolverhampton","TVLICENSING.CO.UK",131.25,"Bert Williams Leisure Centre","7392","Services - General Licences","03/08/2020"
"Wolverhampton City Council","http://opendatacommunities.org/id/metropolitan-district-council/wolverhampton","TESCO STORES 6741",3,"Ernest Bold Court","5411","Provisions (Not for resale)","03/08/2020"
"Wolverhampton City Council","http://opendatacommunities.org/id/metropolitan-district-council/wolverhampton","HIGH STREET PHARMACY",2.1,"Ernest Bold Court","5912","Provisions (Not for resale)","03/08/2020"
"Wolverhampton City Council","http://opendatacommunities.org/id/metropolitan-district-council/wolverhampton","NoteMachine ATM",80,"LAC Transitions Team","6011","Provisions (Not for resale)","03/08/2020"
"Wolverhampton City Council","http://opendatacommunities.org/id/metropolitan-district-council/wolverhampton","FACEBK QKQ2KT6C22",255.32,"Business Support Services","7311","Marketing \ Non-staff advertising","03/08/2020"
"Wolverhampton City Council","http://opendatacommunities.org/id/metropolitan-district-council/wolverhampton","AMZNMktplace",36.66,"Community Enablement","5999","Equipment - Purchase","03/08/2020"
"Wolverhampton City Council","http://opendatacommunities.org/id/metropolitan-district-council/wolverhampton","Phoenix Health Centre",5.63,"Ernest Bold Court","5912","Equipment - Purchase","03/08/2020"
"Wolverhampton City Council","http://opendatacommunities.org/id/metropolitan-district-council/wolverhampton","NATIONWIDE",200,"Duke Street Bungalows","6011","Provisions (Not for resale)","03/08/2020"
"Wolverhampton City Council","http://opendatacommunities.org/id/metropolitan-district-council/wolverhampton","W M MORRISONS.COM",-4.25,"Ernest Bold Court","5411","Provisions (Not for resale)","03/08/2020"
"Wolverhampton City Council","http://opendatacommunities.org/id/metropolitan-district-council/wolverhampton","OAKLAND",324.9,"CIN/CP Social Work Unit - Area 3","7011","Accommodation Costs","03/08/2020"
"Wolverhampton City Council","http://opendatacommunities.org/id/metropolitan-district-council/wolverhampton","OAKLAND",324,"CIN/CP Social Work Unit - Area 3","7011","Accommodation Costs","03/08/2020"
"Wolverhampton City Council","http://opendatacommunities.org/id/metropolitan-district-council/wolverhampton","RAGLAN STREET ST MARK",30,"LAC Transitions Team","6011","Independant Living Allowance","03/08/2020"
"Wolverhampton City Council","http://opendatacommunities.org/id/metropolitan-district-council/wolverhampton","RAGLAN STREET ST MARK",80,"LAC Transitions Team","6011","Independant Living Allowance","03/08/2020"
"Wolverhampton City Council","http://opendatacommunities.org/id/metropolitan-district-council/wolverhampton","TESCO STORES 6197",14.99,"LAC Transitions Team","5411","Independant Living Allowance","03/08/2020"
"Wolverhampton City Council","http://opendatacommunities.org/id/metropolitan-district-council/wolverhampton","FARMFOODS 603",43.47,"Bradley Resource Centre","5411","Cleaning Supplies and Materials","03/08/2020"
"Wolverhampton City Council","http://opendatacommunities.org/id/metropolitan-district-council/wolverhampton","AMZNMKTPLACE AMAZON.CO",125.93,"Audience Development","5999","R4317","03/08/2020"
"Wolverhampton City Council","http://opendatacommunities.org/id/metropolitan-district-council/wolverhampton","AMZNMKTPLACE AMAZON.CO",125.93,"Audience Development","5999","R4317","03/08/2020"
"Wolverhampton City Council","http://opendatacommunities.org/id/metropolitan-district-council/wolverhampton","AMZNMKTPLACE AMAZON.CO",125.93,"Audience Development","5999","R4317","03/08/2020"
"Wolverhampton City Council","http://opendatacommunities.org/id/metropolitan-district-council/wolverhampton","AMZNMKTPLACE AMAZON.CO",125.93,"Audience Development","5999","R4317","03/08/2020"
